{"text_format":"1","workbook":"xlsx","n_sheets":19,"sheets":["NAVIGATORE","ANAGRAFICA","EROGAZIONI","DAREALIZZARE","ANTICIPO","1°SAL","1°SAL_Credito","2°SAL","2°SAL_Credito","3°SAL","3°SAL_Credito","4°SAL","4°SAL_Credito","SALDO","SAL_a Saldo_Credito","UNICO","SAL_Unico_Credito","CASISTICA CAPOIII","APP"],"not_rendered":{"charts":0,"images":6,"macros":1,"external_links":1,"defined_names":44,"comments":1,"pivot_tables":0},"unopened":[],"bounds":{"document_bytes":16777216,"sheet_cells":100000,"rows_first":2000,"rows_last":500,"rows_between":2000,"halvings":0,"cell_chars":16384,"cell_head_chars":4096},"cells_cut":0,"cells_raw":0,"read":"whole","date_system":"1900"}

{"sheet":"NAVIGATORE","index":0,"n_rows":28,"n_cols":11,"rows_kept":28,"cut":false,"hidden":false,"merged":[[5,1,6,1],[4,1,4,10],[25,1,25,9],[5,2,5,9],[15,1,16,1],[15,2,15,6],[8,10,8,12],[9,10,9,12],[10,10,10,12],[11,10,11,12]]}
[]
[]
[]
[]
[null,"RIEPILOGO AVANZAMENTO"]
[null,"EVENTO EROG.","CONTRIBUTI RICHIESTI"]
[null,null,"ANTICIPO","% FIN. CONCESSO","FATTURE RENDICONTATE (TAB.1)","Quietanzate","CAPITALE CIRCOLANTE","TOTALE RICHIESTA (INV + Capitale Circolante)","% INV. AMMESS","EVIDENZE INSERITE PER PAGAMENTI SAL PRECEDENTI"]
[null,"1°SAL",null,null,{"$f":"+'1°SAL'!G37","v":0},{"$f":"+'1°SAL'!E19","v":0},{"$f":"+'1°SAL'!E20","v":0},{"$f":"+E8+G8","v":0},{"$f":"IF(ISERROR(E8/Tot_Inv_AMM),0,E8/Tot_Inv_AMM)","v":0}]
[null,"2°SAL",null,null,{"$f":"+'2°SAL'!G37","v":0},{"$f":"+'2°SAL'!E19","v":0},{"$f":"+'2°SAL'!E20","v":0},{"$f":"+E9+G9","v":0},{"$f":"IF(ISERROR(E9/Tot_Inv_AMM),0,E9/Tot_Inv_AMM)","v":0},{"$f":"IF(E9=0,0,IF('2°SAL'!#REF!=0,0,'2°SAL'!#REF!))","v":0},{"$f":"+IF(D18=\"\",\"\", IF(AND(#REF!>0,J9=#REF!),\"\",CONCATENATE(\"ATT: non sono state fornite evidenze dell'avvenuto pagamento di precedenti erogazioni per € \",TEXT(#REF!-J9,\"#.##0.00\"))))","v":""}]
[null,"3°SAL",null,null,{"$f":"+'3°SAL'!G36","v":0},{"$f":"+'3°SAL'!E19","v":0},{"$f":"+'3°SAL'!E20","v":0},{"$f":"+E10+G10","v":0},{"$f":"IF(ISERROR(E10/Tot_Inv_AMM),0,E10/Tot_Inv_AMM)","v":0},{"$f":"IF(E10=0,0,IF('3°SAL'!#REF!=0,0,'3°SAL'!#REF!))","v":0},{"$f":"+IF(D19=\"\",\"\", IF(AND(#REF!>0,J10=#REF!),\"\",CONCATENATE(\"ATT: non sono state fornite evidenze dell'avvenuto pagamento di precedenti erogazioni per € \",TEXT(#REF!-J10,\"#.##0.00\"))))","v":""}]
[null,"4°SAL",null,null,{"$f":"+'4°SAL'!G36","v":0},{"$f":"+'4°SAL'!E19","v":0},{"$f":"+'4°SAL'!E20","v":0},{"$f":"+E11+G11","v":0},{"$f":"IF(ISERROR(E11/Tot_Inv_AMM),0,E11/Tot_Inv_AMM)","v":0},{"$f":"IF(E11=0,0,IF('4°SAL'!#REF!=0,0,'4°SAL'!#REF!))","v":0},{"$f":"+IF(D20=\"\",\"\", IF(AND(#REF!>0,J11=#REF!),\"\",CONCATENATE(\"ATT: non sono state fornite evidenze dell'avvenuto pagamento di precedenti erogazioni per € \",TEXT(#REF!-J11,\"#.##0.00\"))))","v":""}]
[null,"SALDO",null,null,{"$f":"+SALDO!G37","v":0},{"$f":"+E12","v":0},{"$f":"+SALDO!F41","v":0},{"$f":"+E12+G12","v":0},{"$f":"IF(ISERROR(E12/Tot_Inv_AMM),0,E12/Tot_Inv_AMM)","v":0},{"$f":"IF(E12=0,0,IF(SALDO!#REF!=0,0,SALDO!#REF!))","v":0},{"$f":"+IF(D21=\"\",\"\", IF(AND(#REF!>0,J12=#REF!),\"\",CONCATENATE(\"ATT: non sono state fornite evidenze dell'avvenuto pagamento di precedenti erogazioni per € \",TEXT(#REF!-J12,\"#.##0.00\"))))","v":""}]
[null,null,{"$f":"SUM(C8:C12)","v":0},null,{"$f":"SUM(E8:E12)","v":0},{"$f":"SUM(F8:F12)","v":0},0,0,0,0]
[]
[]
[null,"EVENTO EROG.","CONTRIBUTI EROGATI"]
[null,null,"DATA RICHIESTA","DATA VALUTA","AGEVOLAZIONE CONCESSA","di cui FATT. Quietanzate","di cui Capitale Circolante"]
[null,"1°SAL",{"$f":"+IF(EROGAZIONI!C4=\"\",\"\",EROGAZIONI!C4)","v":""},{"$f":"+IF(EROGAZIONI!D4=\"\",\"\",EROGAZIONI!D4)","v":""},{"$f":"+EROGAZIONI!E4","v":0},{"$f":"+EROGAZIONI!F4","v":0},{"$f":"+EROGAZIONI!H4","v":0}]
[null,"2°SAL",{"$f":"+IF(EROGAZIONI!C5=\"\",\"\",EROGAZIONI!C5)","v":""},{"$f":"+IF(EROGAZIONI!D5=\"\",\"\",EROGAZIONI!D5)","v":""},{"$f":"+EROGAZIONI!E5","v":0},{"$f":"+EROGAZIONI!F5","v":0},{"$f":"+EROGAZIONI!H5","v":0}]
[null,"3°SAL",{"$f":"+IF(EROGAZIONI!C6=\"\",\"\",EROGAZIONI!C6)","v":""},{"$f":"+IF(EROGAZIONI!D6=\"\",\"\",EROGAZIONI!D6)","v":""},{"$f":"+EROGAZIONI!E6","v":0},{"$f":"+EROGAZIONI!F6","v":0},{"$f":"+EROGAZIONI!H6","v":0}]
[null,"4°SAL",{"$f":"+IF(EROGAZIONI!C7=\"\",\"\",EROGAZIONI!C7)","v":""},{"$f":"+IF(EROGAZIONI!D7=\"\",\"\",EROGAZIONI!D7)","v":""},{"$f":"+EROGAZIONI!E7","v":0},{"$f":"+EROGAZIONI!F7","v":0},{"$f":"+EROGAZIONI!H7","v":0}]
[null,"SALDO",{"$f":"+IF(EROGAZIONI!C8=\"\",\"\",EROGAZIONI!C8)","v":""},{"$f":"+IF(EROGAZIONI!D8=\"\",\"\",EROGAZIONI!D8)","v":""},{"$f":"+EROGAZIONI!E8","v":0},{"$f":"+EROGAZIONI!F8","v":0},{"$f":"+EROGAZIONI!H8","v":0}]
[null,null,null,null,{"$f":"SUM(E18:E22)","v":0},{"$f":"SUM(F18:F22)","v":0},0]
[]
[]
[null,"RIEPILOGO IMPORTI RICHIESTI UNICA SOLUZIONE"]
[null,"EVENTO EROG.",null,null,"FATTURE RENDICONTATE (TAB.1)",null,"CAPITALE CIRCOLANTE","TOTALE RICHIESTA CONTRIBUTO CONCESSO","% INV. AMMESS"]
[null,"UNICO",null,null,{"$f":"+UNICO!G37","v":0},null,{"$f":"+UNICO!F41","v":0},{"$f":"+E28+G28","v":0},{"$f":"++IFERROR(E28/Tot_Inv_AMM,0)","v":0}]

{"sheet":"ANAGRAFICA","index":1,"n_rows":22,"n_cols":11,"rows_kept":22,"cut":false,"hidden":false,"merged":[[11,10,11,15],[5,2,5,5],[4,9,4,18],[5,9,5,18],[6,9,6,18],[9,10,9,15],[10,10,10,15],[8,10,8,15],[12,10,12,15],[17,2,17,4],[18,2,18,4],[21,2,21,4],[20,2,20,4],[19,2,19,4],[12,2,12,5],[13,2,13,5],[14,10,14,15],[15,10,15,15],[16,10,16,15],[17,10,17,15],[18,10,18,15],[1,2,1,4],[1,6,1,7],[16,2,16,4],[2,2,2,7],[4,2,4,7],[3,2,3,7],[7,2,7,5],[9,2,9,7],[10,2,10,7],[11,4,11,7],[15,2,15,4],[6,2,6,5],[8,2,8,7]]}
[]
[null,"IDPROGETTO (NIT2xxxx)",null,null,null,"CAPO"]
[null,"Referente"]
[null,"Codice fiscale Referente"]
[null,"Tipologia rappresentanza",null,null,null,null,null,null,null,{"$f":"+IF(C5=\"Procuratore Speciale\",\"La procura deve essere formata direttamente su supporto informatico, sottoscritta digitalmente dal Legale Rappresentante della Società.\",\"\")","v":""}]
[null,"Denominazione società",null,null,null,null,"Forma societaria",null,null,{"$f":"+IF(C5=\"Procuratore Speciale\",\"Deve essere corredata da autentica notarile digitale di firma, resa da un Notaio, il quale attesti i poteri e le qualità della persona che la conferisce ai sensi art. 25, comma 1, D.Lgs. 7/3/05, n. 82 e ss.mm.ii..\",\"\")","v":""}]
[null,"Indirizzo sede legale",null,null,null,null,"CAP",null,null,{"$f":"+IF(C5=\"Procuratore Speciale\",\"L’allegazione della procura non è necessaria laddove si tratti della medesima procura, se del caso, già acquisita in sede di stipula del contratto di finanziamento agevolato\",\"\")","v":""}]
[null,"Comune e provincia sede legale",null,null,null,null,"(Prov.)"]
[null,"PEC",null,null,null,null,null,null,null,null,"C/C VINCOLATO"]
[null,"Codice fiscale",null,null,null,null,null,null,null,"Istituto di credito"]
[null,"Partita IVA",null,null,null,null,null,null,null,"Filiale/Agenzia"]
[null,"Iscrizione al Registro imprese",null,"di",null,null,null,null,null,"Provincia"]
[null,"Indirizzo sede operativa",null,null,null,null,"CAP",null,null,"IBAN"]
[null,"Comune e provincia sede operativa",null,null,null,null,"(Prov.)"]
[null,null,null,null,null,null,null,null,null,null,"C/C Società per capitale circolante"]
[null,"Investimento Totale da realizzare",null,null,null,null,null,null,null,"Istituto di credito"]
[null,"Investimento Totale Ammesso",null,null,null,null,null,null,null,"Filiale/Agenzia"]
[null,"Capitale Circolante",null,null,null,{"$f":"IFERROR(C18/C17,0)","v":0},null,null,null,"Provincia"]
[null,"Totale Ammesso",{"$f":"+C17+C18","v":0},null,null,null,null,null,null,"IBAN"]
[null,"Agevolazione a mutuo"]
[null,"Agevolazione a fondo perduto"]
[null,"Totale Agevolazione concessa",{"$f":"+C20+C21","v":0}]

{"sheet":"EROGAZIONI","index":2,"n_rows":9,"n_cols":8,"rows_kept":9,"cut":false,"hidden":false,"merged":[]}
[]
[]
[null,"EVENTO EROG.","DATA RICHIESTA","DATA VALUTA","AGEVOLAZIONE CONCESSA","PER FATT. Quietanzate","PER FATT. Non Quietanzate","PER Capitale Circolante"]
[null,"1°SAL"]
[null,"2°SAL"]
[null,"3°SAL"]
[null,"4°SAL"]
[null,"SALDO"]
[null,null,null,null,{"$f":"SUM(E4:E8)","v":0},{"$f":"SUM(F4:F8)","v":0},0,0]

{"sheet":"DAREALIZZARE","index":3,"n_rows":9,"n_cols":12,"rows_kept":9,"cut":false,"hidden":false,"merged":[[2,1,2,11]]}
[]
[]
[null,"DETTAGLIO FATTURE INVESTIMENTI DA REALIZZARE E NON AMMESSI ALLE AGEVOLAZIONI"]
[null,"Partita IVA","Denominazione Fornitore","N. fatt.","Data fatt.","Descrizione","Imponibile","IVA e altri oneri","Importo totale ","Modalità Pagamento","Data Pagamento","Categoria di spesa"]
[]
[]
[]
[]
[null,null,null,null,null,null,{"$f":"SUM(G5:G8)","v":0},{"$f":"SUM(H5:H8)","v":0},0]

{"sheet":"ANTICIPO","index":4,"n_rows":42,"n_cols":10,"rows_kept":42,"cut":false,"hidden":false,"merged":[[1,1,1,9],[24,1,24,9],[9,1,10,1],[20,1,22,9],[18,1,18,9],[19,1,19,9],[9,2,10,9],[12,2,12,3],[12,6,12,9],[14,2,14,9],[16,1,16,9],[38,1,38,4],[40,7,41,9],[3,2,3,7],[5,1,5,6],[5,7,5,9],[7,1,7,9],[27,1,27,5],[32,1,32,5],[33,1,33,4],[35,1,35,4],[36,1,36,4],[37,1,37,5],[34,1,34,5]]}
[]
[" ","RICHIESTA EROGAZIONE ANTICIPO"]
[]
[null,"La Società",{"$f":"+IF(ANAGRAFICA!C6=\"\",\"\",ANAGRAFICA!C6)","v":""},null,null,null,null,null,"Progetto N.",{"$f":"+IF(ANAGRAFICA!C2=\"\",\"\",ANAGRAFICA!C2)","v":""}]
[]
[null,"nella persona del SUO",null,null,null,null,null,{"$f":"+IF(ANAGRAFICA!C5=\"\",\"\",ANAGRAFICA!C5)","v":""}]
[]
[null,{"$f":"IF(OR(ANAGRAFICA!C3=\"\",ANAGRAFICA!C4=\"\"),\"\",CONCATENATE(ANAGRAFICA!C3, \" codice fiscale \",ANAGRAFICA!C4))","v":""}]
[]
[null,"Sede in",{"$f":"+IF(OR(ANAGRAFICA!C7=\"\",ANAGRAFICA!C8=\"\",ANAGRAFICA!H8=\"\"),\"\",CONCATENATE(ANAGRAFICA!C7,\" - \",ANAGRAFICA!C8,\" (\",ANAGRAFICA!H8,\")\"))","v":""}]
[]
[]
[null,"Partita IVA",{"$f":"+IF(ANAGRAFICA!C11=\"\",\"\",ANAGRAFICA!C11)","v":""},null,null,"CCIAA",{"$f":"+IF(OR(ANAGRAFICA!C12=\"\",ANAGRAFICA!E12=\"\"),\"\",CONCATENATE(ANAGRAFICA!C12,\" al N° \",ANAGRAFICA!E12))","v":""}]
[]
[null,"PEC",{"$f":"+ANAGRAFICA!C10","v":0}]
[]
[null,"CHIEDE L'EROGAZIONE DELL'ANTICIPO"]
[null,"per l'importo di",null,"pari al",{"$f":"IFERROR(IF(C18/ANAGRAFICA!C22<=40%,C18/ANAGRAFICA!C22,\"Errore\"),0)","v":0},"del valore del finanziamento concesso di €",null,null,null,{"$f":"+IF(ANAGRAFICA!C22=0,\"\",ANAGRAFICA!C22)","v":""}]
[null,{"$f":"+CONCATENATE(\"La somma eventualmente erogata dovrà essere accreditata sul c/c bancario intestato alla Società istituito presso l'istituto di credito \",ANAGRAFICA!K10,\" - Filiale/Agenzia \",ANAGRAFICA!K11)","v":"La somma eventualmente erogata dovrà essere accreditata sul c/c bancario intestato alla Società istituito presso l'istituto di credito  - Filiale/Agenzia "}]
[null,{"$f":"+CONCATENATE(\"IBAN di riferimento - \",ANAGRAFICA!K13)","v":"IBAN di riferimento - "}]
[null,"Detto conto corrente è dedicato, ancorché in via non esclusiva, al ricevimento delle agevolazioni concesse alla medesima società beneficiaria ai sensi del Decreto interministeriale MiSE - MEF 4 dicembre 2020."]
[]
[]
[]
[null,"1 - LA RICHIESTA DI EROGAZIONE DEVE ESSERE CORREDATA PENA DECADENZA DALLA SEGUENTE DOCUMENTAZIONE"]
[]
[null,"DICHIARAZIONI RICHIESTE PER ANTIMAFIA"]
[null,"TIPOLOGIA SOCIETARIA",null,null,null,null,"Società","Coop"]
[null,"ANT 1 - Dichiarazione Antimafia Società",null,null,null,null,{"$f":"+IF(ANAGRAFICA!$H$6=\"\",\"\",IF(AND(ANAGRAFICA!$C$22>=150000,AND(ANAGRAFICA!$H$6<>\"Soc. Coop.\",ANAGRAFICA!$H$6<>\"Soc. Coop. STP\")),\"obbl.\",\"\"))","v":""}]
[null,"ANT 2- Dichiarazione Antimafia Cooperative",null,null,null,null,null,{"$f":"+IF(AND(ANAGRAFICA!$C$22>=150000,OR(ANAGRAFICA!$H$6=\"Soc. Coop.\",ANAGRAFICA!$H$6=\"Soc. Coop. STP\")),\"obbl.\",\"\")","v":""}]
[null,"ANT 3 - Familiari ",null,null,null,null,{"$f":"+IF(G29=\"obbl.\",\"obbl.\",\"\")","v":""},{"$f":"+IF(H30=\"obbl.\",\"obbl.\",\"\")","v":""}]
[]
[null,"GARANZIE"]
[null,"Fideiussione o polizza fideiussioria",null,null,null,"Obbl."]
[null,"DICHIARAZIONE SOSTITUTIVE ATTO NOTORIO"]
[null,"MOD 1 - Dichiarazioni Complessive",null,null,null,"Obbl."]
[null,null,null,null,null,"Obbl."]
[null,"ATTESTAZIONI E DOCUMENTI"]
[null," - Copia di un documento di riconoscimento in corso di validità",null,null,null,"Obbl."]
[]
[null,null,"LUOGO E DATA",null,null,null,null,{"$f":"+CONCATENATE(\"FIRMA DIGITALE DEL \",ANAGRAFICA!C5)","v":"FIRMA DIGITALE DEL "}]
[null,null,{"$f":"+CONCATENATE(ANAGRAFICA!C28,\" \",TEXT(TODAY(),\"gg/mm/aaaa\"))","v":" 12/12/2025"}]

{"sheet":"1°SAL","index":5,"n_rows":98,"n_cols":12,"rows_kept":98,"cut":false,"hidden":false,"merged":[[92,1,92,5],[93,1,93,5],[96,8,97,10],[60,1,60,6],[65,1,65,6],[80,1,80,6],[88,1,88,5],[89,1,89,5],[90,1,90,5],[91,1,91,5],[85,1,85,5],[86,1,86,5],[87,1,87,5],[81,1,81,5],[82,1,82,5],[83,1,83,5],[84,1,84,5],[70,1,70,5],[71,1,71,5],[72,1,72,5],[73,1,73,5],[74,1,74,5],[75,1,75,5],[76,1,76,5],[78,1,78,5],[77,1,77,5],[66,1,66,5],[67,1,67,5],[69,1,69,6],[57,1,57,10],[28,1,28,10],[54,8,55,10],[43,1,53,10],[59,1,59,8],[41,1,41,4],[37,6,37,11],[30,1,30,2],[30,3,30,11],[1,1,1,10],[3,3,3,8],[5,1,5,7],[5,8,5,10],[7,1,7,10],[9,3,10,10],[9,1,10,1],[25,1,25,10],[20,1,20,10],[21,1,23,10],[12,3,12,4],[12,7,12,10],[14,3,14,10],[15,1,15,10],[17,1,17,10]]}
[]
[" ","FACSIMILE DI RICHIESTA EROGAZIONE 1° SAL"]
[]
[null,"La Società",null,{"$f":"+IF(ANAGRAFICA!C6=\"\",\"\",ANAGRAFICA!C6)","v":""},null,null,null,null,null,"Progetto N.",{"$f":"+IF(ANAGRAFICA!C2=\"\",\"\",ANAGRAFICA!C2)","v":""}]
[]
[null,"nella persona del ",null,null,null,null,null,null,{"$f":"+IF(ANAGRAFICA!C5=\"\",\"\",ANAGRAFICA!C5)","v":""}]
[]
[null,{"$f":"IF(OR(ANAGRAFICA!C3=\"\",ANAGRAFICA!C4=\"\"),\"\",CONCATENATE(ANAGRAFICA!C3, \" codice fiscale \",ANAGRAFICA!C4))","v":""}]
[]
[null,"Sede in",null,{"$f":"+IF(OR(ANAGRAFICA!C7=\"\",ANAGRAFICA!C8=\"\",ANAGRAFICA!H8=\"\"),\"\",CONCATENATE(ANAGRAFICA!C7,\" - \",ANAGRAFICA!C8,\" (\",ANAGRAFICA!H8,\")\"))","v":""}]
[]
[]
[null,"Partita IVA",null,{"$f":"+IF(ANAGRAFICA!C11=\"\",\"\",ANAGRAFICA!C11)","v":""},null,null,"CCIAA",{"$f":"+IF(OR(ANAGRAFICA!C12=\"\",ANAGRAFICA!E12=\"\"),\"\",CONCATENATE(ANAGRAFICA!C12,\" al N° \",ANAGRAFICA!E12))","v":""}]
[]
[null,"PEC",null,{"$f":"+ANAGRAFICA!C10","v":0}]
[null,"CHIEDE L'EROGAZIONE DEL 1° SAL"]
[null,"sulla base di un importo rendicontato pari ad €",null,null,{"$f":"+G37+IF(F40=\"NO\",0,F41)","v":0},"così ripartito:"]
[null,{"$f":"IFERROR(_xlfn.CONCAT(\"- Investimenti: € \",IF(G37=0,0,TEXT(G37,\"#.##0.00,00\")),\" corrispondenti al \",TEXT(G37/ANAGRAFICA!C17,\"0,0%\"), \" del valore degli investimenti ammessi alle agevolazioni pari ad  € \",TEXT(ANAGRAFICA!C17,\"#.##0.00\"),\" e così suddivisi:\"),\"\")","v":""}]
[null,"- Fatture NON quietanzate pari ad",null,null,{"$f":"SUMIFS(G33:G36,J33:J36,\"SI\")","v":0}]
[null,"- Capitale Circolante:",null,null,{"$f":"+IF(F40=\"NO\",0,F41)","v":0}]
[null,{"$f":"+CONCATENATE(\"La somma eventualmente erogata dovrà essere accreditata per la quota parte relativa agli investimenti sul c/c vincolato istituito presso l'istituto di credito \",ANAGRAFICA!K10,\" - Filiale/Agenzia \",ANAGRAFICA!K11,\" - IBAN \",ANAGRAFICA!K13,\" e per la quota parte relativa alle spese per capitale circolante sul c/c bancario intestato alla Società istituito presso l'istituto di credito\",ANAGRAFICA!K16,\" - Filiale/Agenzia \",ANAGRAFICA!K17,\" - IBAN \",ANAGRAFICA!K19)","v":"La somma eventualmente erogata dovrà essere accreditata per la quota parte relativa agli investimenti sul c/c vincolato istituito presso l'istituto di credito  - Filiale/Agenzia  - IBAN  e per la quota parte relativa alle spese per capitale circolante sul c/c bancario intestato alla Società istituito presso l'istituto di credito - Filiale/Agenzia  - IBAN "}]
[null,"Detto conto corrente vincolato è dedicato, al ricevimento delle agevolazioni concesse alla medesima società beneficiaria ai sensi dell'art. 10 comma 6 del decreto del Ministro dello sviluppo economico, di concerto con il Ministero dell’economia e delle finanze del 4 dicembre 2020."]
[]
[]
[]
[null,"DETTAGLIO FATTURE RENDICONTATE"]
[]
[null,"1. ELENCO COMPLESSIVO DELLE FATTURE RENDICONTATE"]
[null,{"$f":"+CONCATENATE(\"Valore minimo rendicontabile è pari ad € \",TEXT(ANAGRAFICA!C17*0.1,\"#.##0.00\"))","v":"Valore minimo rendicontabile è pari ad € 000"}]
[null,"RICHIESTA EROGAZIONE 1° SAL"]
[null,"Fornitore"]
[null,"Partita IVA","Denominazione","N. fatt.","Data fatt.","Descrizione","Imponibile (*)","IVA e altri oneri","Importo totale ","C/C Vincolato","Categoria di spesa","IBAN Fornitore"]
[]
[]
[]
[]
[null,null,null,null,null,null,{"$f":"SUM(G33:G36)","v":0}]
[null,null,null,null,null,null,"(*) Nel caso in cui l'impresa svolga esclusivamente attività ricompresa nel settore medico/sanitario (esente IVA),  il costo dell'IVA indetraibile, qualora richiesto ad agevolazione e come indicato nel Piano Esecutivo, va indicato insieme al valore dell'imponibile."]
[]
[null,"Richiesta Capitale Circolante",null,null,null,null,{"$f":"+IF(F40=\"SI\",CONCATENATE(\"Importo massimo richiedibile pari ad € \",TEXT(G37*ANAGRAFICA!F18,\"#.##0.00\")),\"\")","v":""}]
[null,"Valore Capitale Circolante richiesto"]
[null,"La beneficiaria ha maturato e fruito di altre agevolazioni sui beni rendicontati"]
[]
[null,"Tutte le fatture devono essere registrate nei libri contabili e/o registri fiscali previsti dal regime fiscale adottato e nel rispetto della normativa vigente"]
[]
[]
[]
[]
[]
[]
[]
[]
[]
[]
[null,null,null,"LUOGO E DATA",null,null,null,null,{"$f":"+CONCATENATE(\"FIRMA DIGITALE DEL \",ANAGRAFICA!C5)","v":"FIRMA DIGITALE DEL "}]
[null,null,null,{"$f":"+CONCATENATE(ANAGRAFICA!C8,\" \",TEXT(TODAY(),\"gg/mm/aaaa\"))","v":" 12/12/2025"}]
[]
[null,"LA RICHIESTA DI EROGAZIONE DEVE ESSERE CORREDATA PENA DECADENZA DALLA SEGUENTE DOCUMENTAZIONE"]
[]
[null,"DICHIARAZIONI RICHIESTE PER ANTIMAFIA"]
[null,"TIPOLOGIA SOCIETARIA",null,null,null,null,null,"Società","Coop"]
[null,"ANT 1 - Dichiarazione Antimafia Società",null,null,null,null,null,{"$f":"+IF(ANAGRAFICA!$H$6=\"\",\"\",IF(AND(ANAGRAFICA!$C$22>=150000,AND(ANAGRAFICA!$H$6<>\"Soc. Coop.\",ANAGRAFICA!$H$6<>\"Soc. Coop. STP\")),\"obbl.\",\"\"))","v":""}]
[null,"ANT 2- Dichiarazione Antimafia Cooperative",null,null,null,null,null,null,{"$f":"+IF(AND(ANAGRAFICA!$C$22>=150000,OR(ANAGRAFICA!$H$6=\"Soc. Coop.\",ANAGRAFICA!$H$6=\"Soc. Coop. STP\")),\"obbl.\",\"\")","v":""}]
[null,"ANT 3 - Familiari ",null,null,null,null,null,{"$f":"+IF(H62=\"obbl.\",\"obbl.\",\"\")","v":""},{"$f":"+IF(I63=\"obbl.\",\"obbl.\",\"\")","v":""}]
[]
[null,"GARANZIE"]
[null,"Privilegio Speciale",null,null,null,null,{"$f":"+IF(ANAGRAFICA!$C$20>=250000,\"Obbl.\",\"\")","v":""}]
[null,"Ipoteca 1° Grado immobile nel caso di acquisto di immobile",null,null,null,null,{"$f":"IF(COUNTIF('1°SAL'!K33:K36,APP!D2)>0,\"Obbl.\",0)","v":0}]
[]
[null,"DICHIARAZIONE SOSTITUTIVE ATTO NOTORIO"]
[null,"MOD 1 - Dichiarazioni Complessive",null,null,null,null,"Obbl."]
[null,"MOD 2 - Dichiarazione Fornitori",null,null,null,null,"Obbl."]
[null,"MOD 3 - Dichiarazione Assenza Precedenti",null,null,null,null,"Obbl."]
[null,"MOD 4 – Dichiarazioni Cedente",null,null,null,null,"Obbl. in caso di spese specifiche"]
[null,"MOD 5 – Dichiarazione Impegno Cessionario",null,null,null,null,"Obbl. in caso di spese specifiche"]
[null,"MOD 6 - Antiriciclaggio (solo progetti diversi da PNRR)",null,null,null,null,"Obbl."]
[null,"MOD 7 - PNRR (solo progetti PNRR)",null,null,null,null,"Obbl."]
[null,"MOD 9 - Dichiarazione DURC",null,null,null,null,"Obbl."]
[null,"MOD 10 - Dichiarazione coordinate bancarie fornitori e capitale circolante",null,null,null,null,"Obbl."]
[]
[null,"ATTESTAZIONI E DOCUMENTI"]
[null," - Copia di un documento di riconoscimento in corso di validità",null,null,null,null,"Obbl."]
[null," - Copia della polizza assicurativa, contro il rischio di incendio/accessori",null,null,null,null,"Obbl."]
[null," - Copia dei titoli di spesa delle spese agevolate  e della contrattualistica di fornitura [Nota: I titoli di spesa devono riportare, nell’oggetto o nel campo note, l’indicazione del codice CUP (Codice Unico progetto) o della misura agevolativa “Nuove imprese a Tasso Zero”]",null,null,null,null,"Obbl."]
[null," - Copia sottoscritta digitalmente dal Legale Rappresentante del libro cespiti ammortizzabili con evidenza delle registrazioni delle fatture rendicontate ",null,null,null,null,"Obbl."]
[null," - Copia sottoscritta digitalmente dal Legale Rappresentante del libro giornale, con evidenza delle registrazioni delle fatture rendicontate",null,null,null,null,"Obbl."]
[null,"- Mandato irrevocabile di pagamento conforme al modello accluso quale Allegato B alla Convenzione per la regolamentazione dei conti correnti vincolati ai sensi dell'art. 10 comma 6 del decreto del Ministro dello, stipulata il 6 dicembre 2016 tra il Ministero dello Sviluppo Economico, Invitalia – Agenzia nazionale per l’attrazione degli investimenti e lo sviluppo d’impresa S.p.A., e l’Associazione Bancaria Italiana (ABI)\n- Estratto del conto corrente vincolato;",null,null,null,null,"Obbl."]
[null," - Situazione patrimoniale, all’ultima data utile, con evidenza dell'eventuale costituzione dell'impegno (rif. delibera assembleare)  ad effettuare l'apporto finanziario privato ed i relativi versamenti",null,null,null,null,"Obbl."]
[null," - Perizia Asseverata che attesti la rispondenza dell’immobile agli specifici vincoli edilizi, urbanistici e di destinazione d’uso ovvero la loro avvenuta richiesta, laddove gli stessi non siano stati ancora rilasciati",null,null,null,null,"Obbl."]
[null," - Attestazione della disponibilità dei locali idonei all’attività d’impresa, ivi inclusa la conformità degli stessi",null,null,null,null,"Obbl. se non già fornita"]
[null," - Relazione Tecnica del Direttore Lavori/Cantiere dello stato di avanzamento dei lavori connessi alle Opere Murarie (agevolate e non agevolate) relativa a:\n a) richieste e rilascio di permessi ed autorizzazioni abilitative all'avvio delle opere\n b) lavori realizzati\n c) lavori da realizzare\n d) variazioni eventuali intervenute in corso d'opera rispetto agli interventi approvati",null,null,null,null,"Obbl. in caso di spese per Opere Murarie"]
[null," - Copia dei contratti di acquisto dei beni mobili registrati e - in caso di mezzi targati - della carta di circolazione e del certificato di proprietà",null,null,null,null,"Obbl. in caso di spese specifiche"]
[null," - Attestazione dello stato di avanzamento degli interventi e della realizzazione del piano degli investimenti delle spese non agevolate (se previste), funzionali alla realizzazione del programma di investimento ",null,null,null,null,"Obbl. per spese realizzate ma non agevolate"]
[null,"- In caso di rendicontazione di spese relative ad attrezzature installate presso unità produttive diverse dall’unità interessata dal programma agevolato:\na) copia del libro dei beni prestati a terzi\nb) copia del titolo di disponibilità in uso a titolo gratuito, da parte del cessionario, delle attrezzature agevolate installate presso unità produttive diverse dall’unità produttiva interessata dal programma agevolato\nc) copia dei documenti di trasporto tenuti ai sensi del D.P.R. 6 ottobre 1978, n. 627, e del D.M. 29 novembre 1978 e ss.mm.ii., da cui risulta l’ubicazione di ciascun bene",null,null,null,null,"Obbl. in caso di spese specifiche"]
[]
[]
[null,null,null,"LUOGO E DATA",null,null,null,null,{"$f":"+I55","v":"FIRMA DIGITALE DEL "}]
[null,null,null,{"$f":"+CONCATENATE(ANAGRAFICA!C46,\" \",TEXT(TODAY(),\"gg/mm/aaaa\"))","v":" 12/12/2025"}]

{"sheet":"1°SAL_Credito","index":6,"n_rows":14,"n_cols":12,"rows_kept":14,"cut":false,"hidden":false,"merged":[[2,0,2,11],[10,0,10,11],[12,6,13,11]]}
[]
[]
["Dettaglio delle agevolazione fruite sui beni oggetto dell'investimento"]
["Partita IVA","Fornitore ","N. fatt.","Data fatt.","Bene","Valore Imponibile  Bene","Tipo di agevolazione","Agevolazione maturata totale","di cui fruita (rif. compensazioni) (A)","Vantaggio fiscale (es. IRES/IRAP) su agevolazione fruita (B)","Totale ulteriori agevolazioni fruite (A+B)","CUP (ove presente)"]
[]
[]
[]
[null,null,null,null,null,{"$f":"+SUM(F5:F7)","v":0},null,{"$f":"+SUM(H5:H7)","v":0},{"$f":"+SUM(I5:I7)","v":0},{"$f":"+SUM(J5:J7)","v":0},{"$f":"+SUM(K5:K7)","v":0}]
[]
[]
["La tabella deve riepilogare i beni oggetto di altre agevolazione (credito di imposta, fondi regionali ecc..), indicando le relative fatture e fornitore. Pertanto beni/fatture che non si riferiscono a beni oggetto di altre agevolazioni non dovranno essere elencati/e."]
[]
["LUOGO E DATA",null,null,null,null,null,{"$f":"+CONCATENATE(\"FIRMA DIGITALE DEL \",ANAGRAFICA!C5)","v":"FIRMA DIGITALE DEL "}]
[{"$f":"+CONCATENATE(ANAGRAFICA!C8,\" \",TEXT(TODAY(),\"gg/mm/aaaa\"))","v":" 12/12/2025"}]

{"sheet":"2°SAL","index":7,"n_rows":92,"n_cols":12,"rows_kept":92,"cut":false,"hidden":false,"merged":[[73,1,73,5],[25,1,25,10],[20,1,20,10],[72,1,72,5],[56,1,56,6],[57,1,57,5],[63,1,63,5],[64,1,64,5],[61,1,61,5],[60,1,60,6],[66,1,66,5],[67,1,67,5],[69,1,69,5],[30,1,30,2],[30,3,30,11],[68,1,68,5],[1,1,1,10],[3,3,3,8],[5,1,5,7],[5,8,5,10],[7,1,7,10],[9,1,10,1],[9,3,10,10],[12,3,12,4],[12,7,12,10],[14,3,14,10],[15,1,15,10],[41,1,41,4],[62,1,62,5],[28,1,28,10],[51,1,51,6],[48,1,48,10],[45,8,46,10],[44,8,44,10],[17,1,17,10],[21,1,23,10],[37,6,37,11],[90,8,91,10],[50,1,50,8],[43,1,43,10],[80,1,80,5],[81,1,81,5],[82,1,82,5],[83,1,83,5],[84,1,84,5],[75,1,75,5],[76,1,76,5],[77,1,77,5],[78,1,78,5],[79,1,79,5],[74,1,74,5],[65,1,65,5],[71,1,71,6]]}
[]
[" ","FACSIMILE DI RICHIESTA EROGAZIONE 2° SAL "]
[]
[null,"La Società",null,{"$f":"+IF(ANAGRAFICA!C6=\"\",\"\",ANAGRAFICA!C6)","v":""},null,null,null,null,null,"Progetto N.",{"$f":"+IF(ANAGRAFICA!C2=\"\",\"\",ANAGRAFICA!C2)","v":""}]
[]
[null,"nella persona del ",null,null,null,null,null,null,{"$f":"+IF(ANAGRAFICA!C5=\"\",\"\",ANAGRAFICA!C5)","v":""}]
[]
[null,{"$f":"IF(OR(ANAGRAFICA!C3=\"\",ANAGRAFICA!C4=\"\"),\"\",CONCATENATE(ANAGRAFICA!C3, \" codice fiscale \",ANAGRAFICA!C4))","v":""}]
[]
[null,"Sede in",null,{"$f":"+IF(OR(ANAGRAFICA!C7=\"\",ANAGRAFICA!C8=\"\",ANAGRAFICA!H8=\"\"),\"\",CONCATENATE(ANAGRAFICA!C7,\" - \",ANAGRAFICA!C8,\" (\",ANAGRAFICA!H8,\")\"))","v":""}]
[]
[]
[null,"Partita IVA",null,{"$f":"+IF(ANAGRAFICA!C11=\"\",\"\",ANAGRAFICA!C11)","v":""},null,null,"CCIAA",{"$f":"+IF(OR(ANAGRAFICA!C12=\"\",ANAGRAFICA!E12=\"\"),\"\",CONCATENATE(ANAGRAFICA!C12,\" al N° \",ANAGRAFICA!E12))","v":""}]
[]
[null,"PEC",null,{"$f":"+ANAGRAFICA!C10","v":0}]
[null,"CHIEDE L'EROGAZIONE DEL 2° SAL"]
[null,"sulla base di un importo rendicontato pari ad €",null,null,{"$f":"+G37+IF(F40=\"NO\",0,F41)","v":0},"così ripartito:"]
[null,{"$f":"IFERROR(_xlfn.CONCAT(\"- Investimenti: € \",IF(G37=0,0,TEXT(G37,\"#.##0.00,00\")),\" corrispondenti al \",TEXT(G37/ANAGRAFICA!C17,\"0,0%\"), \" del valore degli investimenti ammessi alle agevolazioni pari ad  € \",TEXT(ANAGRAFICA!C17,\"#.##0.00\"),\" e così suddivisi:\"),\"\")","v":""}]
[null,"- Fatture NON quietanzate pari ad",null,null,{"$f":"SUMIFS(G33:G36,J33:J36,\"SI\")","v":0}]
[null,"- Capitale Circolante:",null,null,{"$f":"+IF(F40=\"NO\",0,F41)","v":0}]
[null,{"$f":"+CONCATENATE(\"La somma eventualmente erogata dovrà essere accreditata per la quota parte relativa agli investimenti sul c/c vincolato istituito presso l'istituto di credito \",ANAGRAFICA!K10,\" - Filiale/Agenzia \",ANAGRAFICA!K11,\" - IBAN \",ANAGRAFICA!K13,\" e per la quota parte relativa alle spese per capitale circolante sul c/c bancario intestato alla Società istituito presso l'istituto di credito\",ANAGRAFICA!K16,\" - Filiale/Agenzia \",ANAGRAFICA!K17,\" - IBAN \",ANAGRAFICA!K19)","v":"La somma eventualmente erogata dovrà essere accreditata per la quota parte relativa agli investimenti sul c/c vincolato istituito presso l'istituto di credito  - Filiale/Agenzia  - IBAN  e per la quota parte relativa alle spese per capitale circolante sul c/c bancario intestato alla Società istituito presso l'istituto di credito - Filiale/Agenzia  - IBAN "}]
[null,"Detto conto corrente vincolato è dedicato, al ricevimento delle agevolazioni concesse alla medesima società beneficiaria ai sensi dell'art. 10 comma 6 del decreto del Ministro dello sviluppo economico, di concerto con il Ministero dell’economia e delle finanze del 4 dicembre 2020."]
[]
[]
[]
[null,"DETTAGLIO FATTURE RENDICONTATE"]
[]
[null,"1. ELENCO COMPLESSIVO DELLE FATTURE RENDICONTATE"]
[null,{"$f":"+CONCATENATE(\"Valore minimo rendicontabile è pari ad € \",TEXT(ANAGRAFICA!C17*0.1,\"#.##0.00\"))","v":"Valore minimo rendicontabile è pari ad € 000"}]
[null,"RICHIESTA EROGAZIONE 2° SAL B37"]
[null,"Fornitore"]
[null,"Partita IVA","Fornitore ","N. fatt.","Data fatt.","Descrizione","Imponibile (*)","IVA e altri oneri","Importo totale ","C/C Vincolato","Categoria di spesa","IBAN Fornitore"]
[]
[]
[]
[]
[null,null,null,null,null,null,{"$f":"SUM(G33:G36)","v":0}]
[null,null,null,null,null,null,"(*) Nel caso in cui l'impresa svolga esclusivamente attività ricompresa nel settore medico/sanitario (esente IVA),  il costo dell'IVA indetraibile, qualora richiesto ad agevolazione e come indicato nel Piano Esecutivo, va indicato insieme al valore dell'imponibile."]
[]
[null,"Richiesta Capitale Circolante",null,null,null,null,{"$f":"+IF(F40=\"SI\",CONCATENATE(\"Importo massimo richiedibile pari ad € \",TEXT(G37*ANAGRAFICA!F18,\"#.##0.00\")),\"\")","v":""}]
[null,"Valore Capitale Circolante richiesto"]
[null,"La beneficiaria ha maturato e fruito di altre agevolazioni sui beni rendicontati"]
[]
[null,"Tutte le fatture devono essere registrate nei libri contabili e/o registri fiscali previsti dal regime fiscale adottato e nel rispetto della normativa vigente"]
[]
[null,null,null,"LUOGO E DATA",null,null,null,null,{"$f":"+CONCATENATE(\"FIRMA DIGITALE DEL \",ANAGRAFICA!C5)","v":"FIRMA DIGITALE DEL "}]
[null,null,null,{"$f":"+CONCATENATE(ANAGRAFICA!C8,\" \",TEXT(TODAY(),\"gg/mm/aaaa\"))","v":" 12/12/2025"}]
[]
[null,"LA RICHIESTA DI EROGAZIONE DEVE ESSERE CORREDATA PENA DECADENZA DALLA SEGUENTE DOCUMENTAZIONE"]
[]
[null,"DICHIARAZIONI RICHIESTE PER ANTIMAFIA"]
[null,"TIPOLOGIA SOCIETARIA",null,null,null,null,null,"Società","Coop"]
[null,"ANT 1 - Dichiarazione Antimafia Società",null,null,null,null,null,{"$f":"+IF(ANAGRAFICA!$H$6=\"\",\"\",IF(AND(ANAGRAFICA!$C$22>=150000,AND(ANAGRAFICA!$H$6<>\"Soc. Coop.\",ANAGRAFICA!$H$6<>\"Soc. Coop. STP\")),\"obbl.\",\"\"))","v":""}]
[null,"ANT 2- Dichiarazione Antimafia Cooperative",null,null,null,null,null,null,{"$f":"+IF(AND(ANAGRAFICA!$C$22>=150000,OR(ANAGRAFICA!$H$6=\"Soc. Coop.\",ANAGRAFICA!$H$6=\"Soc. Coop. STP\")),\"obbl.\",\"\")","v":""}]
[null,"ANT 3 - Familiari ",null,null,null,null,null,{"$f":"+IF(H53=\"obbl.\",\"obbl.\",\"\")","v":""},{"$f":"+IF(I54=\"obbl.\",\"obbl.\",\"\")","v":""}]
[]
[null,"GARANZIE"]
[null,"Privilegio Speciale",null,null,null,null,{"$f":"+IF(ANAGRAFICA!$C$20>=250000,\"Obbl.\",\"\")","v":""}]
[]
[]
[null,"DICHIARAZIONE SOSTITUTIVE ATTO NOTORIO"]
[null,"MOD 1 - Dichiarazioni Complessive",null,null,null,null,"Obbl."]
[null,"MOD 2 - Dichiarazione Fornitori",null,null,null,null,"Obbl."]
[null,"MOD 3 - Dichiarazione Assenza Precedenti",null,null,null,null,"Obbl."]
[null,"MOD 4 – Dichiarazioni Cedente",null,null,null,null,"Obbl. in caso di spese specifiche"]
[null,"MOD 5 – Dichiarazione Impegno Cessionario",null,null,null,null,"Obbl. in caso di spese specifiche"]
[null,"MOD 6 - Antiriciclaggio (solo progetti diversi da PNRR)",null,null,null,null,"Obbl."]
[null,"MOD 7 - PNRR (solo progetti PNRR)",null,null,null,null,"Obbl."]
[null,"MOD 9 - Dichiarazione DURC",null,null,null,null,"Obbl."]
[null,"MOD 10 - Dichiarazione coordinate bancarie fornitori e capitale circolante",null,null,null,null,"Obbl."]
[]
[null,"ATTESTAZIONI E DOCUMENTI"]
[null," - Copia di un documento di riconoscimento in corso di validità",null,null,null,null,"Obbl."]
[null," - Copia della polizza assicurativa, contro il rischio di incendio/accessori",null,null,null,null,"Obbl."]
[null," - Copia dei titoli di spesa delle spese agevolate  e della contrattualistica di fornitura [Nota: I titoli di spesa devono riportare, nell’oggetto o nel campo note, l’indicazione del codice CUP (Codice Unico progetto) o della misura agevolativa “Nuove imprese a Tasso Zero”]",null,null,null,null,"Obbl."]
[null," - Copia sottoscritta digitalmente dal Legale Rappresentante del libro cespiti ammortizzabili con evidenza delle registrazioni delle fatture rendicontate ",null,null,null,null,"Obbl."]
[null," - Copia sottoscritta digitalmente dal Legale Rappresentante del libro giornale, con evidenza delle registrazioni delle fatture rendicontate ",null,null,null,null,"Obbl."]
[null,"- Estratto del conto corrente vincolato",null,null,null,null,"Obbl."]
[null," - Situazione patrimoniale, all’ultima data utile, con evidenza dell'eventuale costituzione dell'impegno (rif. delibera assembleare)  ad effettuare l'apporto finanziario privato ed i relativi versamenti",null,null,null,null,"Obbl."]
[]
[]
[null," - Relazione Tecnica del Direttore Lavori/Cantiere dello stato di avanzamento dei lavori connessi alle Opere Murarie (agevolate e non agevolate) relativa a:\n a) richieste e rilascio di permessi ed autorizzazioni abilitative all'avvio delle opere\n b) lavori realizzati\n c) lavori da realizzare\n d) variazioni eventuali intervenute in corso d'opera rispetto agli interventi approvati",null,null,null,null,"Obbl. in caso di spese per Opere Murarie"]
[null," - Copia dei contratto di acquisto dei beni mobili registrati e - in caso di mezzi targati - della carta di circolazione e del certificato di proprietà",null,null,null,null,"Obbl. in caso di spese specifiche"]
[null," - Attestazione dello stato di avanzamento degli interventi e della realizzazione del piano degli investimenti delle spese non agevolate (se previste), funzionali alla realizzazione del programma di investimento ",null,null,null,null,"Obbl. per spese realizzate ma non agevolate"]
[null,"- In caso di rendicontazione di spese relative ad attrezzature installate presso unità produttive diverse dall’unità interessata dal programma agevolato:\na) copia del libro dei beni prestati a terzi\nb) copia del titolo di disponibilità in uso a titolo gratuito, da parte del cessionario, delle attrezzature agevolate installate presso unità produttive diverse dall’unità produttiva interessata dal programma agevolato\nc) copia dei documenti di trasporto tenuti ai sensi del D.P.R. 6 ottobre 1978, n. 627, e del D.M. 29 novembre 1978 e ss.mm.ii., da cui risulta l’ubicazione di ciascun bene",null,null,null,null,"Obbl. in caso di spese specifiche"]
[]
[]
[]
[]
[]
[null,null,null,"LUOGO E DATA",null,null,null,null,{"$f":"+I46","v":"FIRMA DIGITALE DEL "}]
[null,null,null,{"$f":"+CONCATENATE(ANAGRAFICA!C43,\" \",TEXT(TODAY(),\"gg/mm/aaaa\"))","v":" 12/12/2025"}]

{"sheet":"2°SAL_Credito","index":8,"n_rows":14,"n_cols":12,"rows_kept":14,"cut":false,"hidden":false,"merged":[[2,0,2,11],[10,0,10,11],[12,6,13,11]]}
[]
[]
["Dettaglio delle agevolazione fruite sui beni oggetto dell'investimento"]
["Partita IVA","Fornitore ","N. fatt.","Data fatt.","Bene","Valore Imponibile  Bene","Tipo di agevolazione","Agevolazione maturata totale","di cui fruita (rif. compensazioni)\n(A)","Vantaggio fiscale (es. IRES/IRAP) su agevolazione fruita\n(B)","Totale ulteriori agevolazioni fruite\n(A+B)","CUP (ove presente)"]
[]
[]
[]
[null,null,null,null,null,{"$f":"+SUM(F5:F7)","v":0},null,{"$f":"+SUM(H5:H7)","v":0},{"$f":"+SUM(I5:I7)","v":0},{"$f":"+SUM(J5:J7)","v":0},{"$f":"+SUM(K5:K7)","v":0}]
[]
[]
["La tabella deve riepilogare i beni oggetto di altre agevolazione (credito di imposta, fondi regionali ecc..), indicando le relative fatture e fornitore. Pertanto beni/fatture che non si riferiscono a beni oggetto di altre agevolazioni non dovranno essere elencati/e."]
[]
["LUOGO E DATA",null,null,null,null,null,{"$f":"+CONCATENATE(\"FIRMA DIGITALE DEL \",ANAGRAFICA!C5)","v":"FIRMA DIGITALE DEL "}]
[{"$f":"+CONCATENATE(ANAGRAFICA!C8,\" \",TEXT(TODAY(),\"gg/mm/aaaa\"))","v":" 12/12/2025"}]

{"sheet":"3°SAL","index":9,"n_rows":92,"n_cols":12,"rows_kept":92,"cut":false,"hidden":false,"merged":[[15,1,15,10],[28,1,28,10],[25,1,25,10],[9,1,10,1],[9,3,10,10],[12,3,12,4],[12,7,12,10],[14,3,14,10],[1,1,1,10],[3,3,3,8],[5,1,5,7],[5,8,5,10],[7,1,7,10],[79,1,79,5],[40,1,40,4],[51,1,51,6],[48,1,48,10],[45,8,46,10],[44,8,44,10],[71,1,71,6],[72,1,72,5],[56,1,56,6],[60,1,60,6],[63,1,63,5],[61,1,61,5],[57,1,57,5],[67,1,67,5],[69,1,69,5],[65,1,65,5],[73,1,73,5],[30,1,30,2],[20,1,20,10],[17,1,17,10],[21,1,23,10],[36,6,36,11],[68,1,68,5],[90,8,91,10],[50,1,50,8],[42,1,43,10],[80,1,80,5],[81,1,81,5],[82,1,82,5],[83,1,83,5],[84,1,84,5],[75,1,75,5],[76,1,76,5],[77,1,77,5],[78,1,78,5],[74,1,74,5],[64,1,64,5],[62,1,62,5],[66,1,66,5]]}
[]
[" ","FACSIMILE DI RICHIESTA EROGAZIONE 3° SAL"]
[]
[null,"La Società",null,{"$f":"+IF(ANAGRAFICA!C6=\"\",\"\",ANAGRAFICA!C6)","v":""},null,null,null,null,null,"Progetto N.",{"$f":"+IF(ANAGRAFICA!C2=\"\",\"\",ANAGRAFICA!C2)","v":""}]
[]
[null,"nella persona del ",null,null,null,null,null,null,{"$f":"+IF(ANAGRAFICA!C5=\"\",\"\",ANAGRAFICA!C5)","v":""}]
[]
[null,{"$f":"IF(OR(ANAGRAFICA!C3=\"\",ANAGRAFICA!C4=\"\"),\"\",CONCATENATE(ANAGRAFICA!C3, \" codice fiscale \",ANAGRAFICA!C4))","v":""}]
[]
[null,"Sede in",null,{"$f":"+IF(OR(ANAGRAFICA!C7=\"\",ANAGRAFICA!C8=\"\",ANAGRAFICA!H8=\"\"),\"\",CONCATENATE(ANAGRAFICA!C7,\" - \",ANAGRAFICA!C8,\" (\",ANAGRAFICA!H8,\")\"))","v":""}]
[]
[]
[null,"Partita IVA",null,{"$f":"+IF(ANAGRAFICA!C11=\"\",\"\",ANAGRAFICA!C11)","v":""},null,null,"CCIAA",{"$f":"+IF(OR(ANAGRAFICA!C12=\"\",ANAGRAFICA!E12=\"\"),\"\",CONCATENATE(ANAGRAFICA!C12,\" al N° \",ANAGRAFICA!E12))","v":""}]
[]
[null,"PEC",null,{"$f":"+ANAGRAFICA!C10","v":0}]
[null,"CHIEDE L'EROGAZIONE DEL 3° SAL"]
[null,"sulla base di un importo rendicontato pari ad €",null,null,{"$f":"+G36+IF(F39=\"NO\",0,F40)","v":0},"così ripartito:"]
[null,{"$f":"IFERROR(_xlfn.CONCAT(\"- Investimenti: € \",IF(G36=0,0,TEXT(G36,\"#.##0.00,00\")),\" corrispondenti al \",TEXT(G36/ANAGRAFICA!C17,\"0,0%\"), \" del valore degli investimenti ammessi alle agevolazioni pari ad  € \",TEXT(ANAGRAFICA!C17,\"#.##0.00\"),\" e così suddivisi:\"),\"\")","v":""}]
[null,"- Fatture NON quietanzate pari ad",null,null,{"$f":"SUMIFS(G33:G33,J33:J33,\"SI\")","v":0}]
[null,"- Capitale Circolante:",null,null,{"$f":"+IF(F39=\"NO\",0,F40)","v":0}]
[null,{"$f":"+CONCATENATE(\"La somma eventualmente erogata dovrà essere accreditata per la quota parte relativa agli investimenti sul c/c vincolato istituito presso l'istituto di credito \",ANAGRAFICA!K10,\" - Filiale/Agenzia \",ANAGRAFICA!K11,\" - IBAN \",ANAGRAFICA!K13,\" e per la quota parte relativa alle spese per capitale circolante sul c/c bancario intestato alla Società istituito presso l'istituto di credito\",ANAGRAFICA!K16,\" - Filiale/Agenzia \",ANAGRAFICA!K17,\" - IBAN \",ANAGRAFICA!K19)","v":"La somma eventualmente erogata dovrà essere accreditata per la quota parte relativa agli investimenti sul c/c vincolato istituito presso l'istituto di credito  - Filiale/Agenzia  - IBAN  e per la quota parte relativa alle spese per capitale circolante sul c/c bancario intestato alla Società istituito presso l'istituto di credito - Filiale/Agenzia  - IBAN "}]
[null,"Detto conto corrente vincolato è dedicato, al ricevimento delle agevolazioni concesse alla medesima società beneficiaria ai sensi dell'art. 10 comma 6 del decreto del Ministro dello sviluppo economico, di concerto con il Ministero dell’economia e delle finanze del 4 dicembre 2020."]
[]
[]
[]
[null,"DETTAGLIO FATTURE RENDICONTATE"]
[]
[null,"1. ELENCO COMPLESSIVO DELLE FATTURE RENDICONTATE"]
[null,{"$f":"+CONCATENATE(\"Valore minimo rendicontabile è pari ad € \",TEXT(ANAGRAFICA!C17*0.1,\"#.##0.00\"))","v":"Valore minimo rendicontabile è pari ad € 000"}]
[]
[null,"Fornitore"]
[null,"Partita IVA","Denominazione","N. fatt.","Data fatt.","Descrizione","Imponibile (*)","IVA e altri oneri","Importo totale ","C/C Vincolato","Categoria di spesa","IBAN Fornitore"]
[]
[]
[]
[null,null,null,null,null,null,{"$f":"SUM(G33:G33)","v":0}]
[null,null,null,null,null,null,"(*) Nel caso in cui l'impresa svolga esclusivamente attività ricompresa nel settore medico/sanitario (esente IVA),  il costo dell'IVA indetraibile, qualora richiesto ad agevolazione e come indicato nel Piano Esecutivo, va indicato insieme al valore dell'imponibile."]
[]
[null,"Richiesta Capitale Circolante",null,null,null,null,{"$f":"+IF(F39=\"SI\",CONCATENATE(\"Importo massimo richiedibile pari ad € \",TEXT(G36*ANAGRAFICA!F18,\"#.##0.00\")),\"\")","v":""}]
[null,"Valore Capitale Circolante richiesto"]
[null,"La beneficiaria ha maturato e fruito di altre agevolazioni sui beni rendicontati"]
[]
[null,"Tutte le fatture devono essere registrate nei libri contabili e/o registri fiscali previsti dal regime fiscale adottato e nel rispetto della normativa vigente"]
[]
[]
[null,null,null,"LUOGO E DATA",null,null,null,null,{"$f":"+CONCATENATE(\"FIRMA DIGITALE DEL \",ANAGRAFICA!C5)","v":"FIRMA DIGITALE DEL "}]
[null,null,null,{"$f":"+CONCATENATE(ANAGRAFICA!C8,\" \",TEXT(TODAY(),\"gg/mm/aaaa\"))","v":" 12/12/2025"}]
[]
[null,"LA RICHIESTA DI EROGAZIONE DEVE ESSERE CORREDATA PENA DECADENZA DALLA SEGUENTE DOCUMENTAZIONE"]
[]
[null,"DICHIARAZIONI RICHIESTE PER ANTIMAFIA"]
[null,"TIPOLOGIA SOCIETARIA",null,null,null,null,null,"Società","Coop"]
[null,"ANT 1 - Dichiarazione Antimafia Società",null,null,null,null,null,{"$f":"+IF(ANAGRAFICA!$H$6=\"\",\"\",IF(AND(ANAGRAFICA!$C$22>=150000,AND(ANAGRAFICA!$H$6<>\"Soc. Coop.\",ANAGRAFICA!$H$6<>\"Soc. Coop. STP\")),\"obbl.\",\"\"))","v":""}]
[null,"ANT 2- Dichiarazione Antimafia Cooperative",null,null,null,null,null,null,{"$f":"+IF(AND(ANAGRAFICA!$C$22>=150000,OR(ANAGRAFICA!$H$6=\"Soc. Coop.\",ANAGRAFICA!$H$6=\"Soc. Coop. STP\")),\"obbl.\",\"\")","v":""}]
[null,"ANT 3 - Familiari ",null,null,null,null,null,{"$f":"+IF(H53=\"obbl.\",\"obbl.\",\"\")","v":""},{"$f":"+IF(I54=\"obbl.\",\"obbl.\",\"\")","v":""}]
[]
[null,"GARANZIE"]
[null,"Privilegio Speciale",null,null,null,null,{"$f":"+IF(ANAGRAFICA!$C$20>=250000,\"Obbl.\",\"\")","v":""}]
[]
[]
[null,"DICHIARAZIONE SOSTITUTIVE ATTO NOTORIO"]
[null,"MOD 1 - Dichiarazioni Complessive",null,null,null,null,"Obbl."]
[null,"MOD 2 - Dichiarazione Fornitori",null,null,null,null,"Obbl."]
[null,"MOD 3 - Dichiarazione Assenza Precedenti",null,null,null,null,"Obbl."]
[null,"MOD 4 – Dichiarazioni Cedente",null,null,null,null,"Obbl. in caso di spese specifiche"]
[null,"MOD 5 – Dichiarazione Impegno Cessionario",null,null,null,null,"Obbl. in caso di spese specifiche"]
[null,"MOD 6 - Antiriciclaggio (solo progetti diversi da PNRR)",null,null,null,null,"Obbl."]
[null,"MOD 7 - PNRR (solo progetti PNRR)",null,null,null,null,"Obbl."]
[null,"MOD 9 - Dichiarazione DURC",null,null,null,null,"Obbl."]
[null,"MOD 10 - Dichiarazione coordinate bancarie fornitori e capitale circolante",null,null,null,null,"Obbl."]
[]
[null,"ATTESTAZIONI E DOCUMENTI"]
[null," - Copia di un documento di riconoscimento in corso di validità",null,null,null,null,"Obbl."]
[null," - Copia della polizza assicurativa, contro il rischio di incendio/accessori",null,null,null,null,"Obbl."]
[null," - Copia dei titoli di spesa delle spese agevolate  e della contrattualistica di fornitura [Nota: I titoli di spesa devono riportare, nell’oggetto o nel campo note, l’indicazione del codice CUP (Codice Unico progetto) o della misura agevolativa “Nuove imprese a Tasso Zero”]",null,null,null,null,"Obbl."]
[null," - Copia sottoscritta digitalmente dal Legale Rappresentante del libro cespiti ammortizzabili con evidenza delle registrazioni delle fatture rendicontate ",null,null,null,null,"Obbl."]
[null," - Copia sottoscritta digitalmente dal Legale Rappresentante del libro giornale, con evidenza delle registrazioni delle fatture rendicontate",null,null,null,null,"Obbl."]
[null,"- Estratto del conto corrente vincolato",null,null,null,null,"Obbl."]
[null," - Situazione patrimoniale, all’ultima data utile, con evidenza dell'eventuale costituzione dell'impegno (rif. delibera assembleare)  ad effettuare l'apporto finanziario privato ed i relativi versamenti",null,null,null,null,"Obbl."]
[]
[]
[null," - Relazione Tecnica del Direttore Lavori/Cantiere dello stato di avanzamento dei lavori connessi alle Opere Murarie (agevolate e non agevolate) relativa a:\n a) richieste e rilascio di permessi ed autorizzazioni abilitative all'avvio delle opere\n b) lavori realizzati\n c) lavori da realizzare\n d) variazioni eventuali intervenute in corso d'opera rispetto agli interventi approvati",null,null,null,null,"Obbl. in caso di spese per Opere Murarie"]
[null," - Copia dei contratto di acquisto dei beni mobili registrati e - in caso di mezzi targati - della carta di circolazione e del certificato di proprietà",null,null,null,null,"Obbl. in caso di spese specifiche"]
[null," - Attestazione dello stato di avanzamento degli interventi e della realizzazione del piano degli investimenti delle spese non agevolate (se previste), funzionali alla realizzazione del programma di investimento ",null,null,null,null,"Obbl. per spese realizzate ma non agevolate"]
[null,"- In caso di rendicontazione di spese relative ad attrezzature installate presso unità produttive diverse dall’unità interessata dal programma agevolato:\na) copia del libro dei beni prestati a terzi\nb) copia del titolo di disponibilità in uso a titolo gratuito, da parte del cessionario, delle attrezzature agevolate installate presso unità produttive diverse dall’unità produttiva interessata dal programma agevolato\nc) copia dei documenti di trasporto tenuti ai sensi del D.P.R. 6 ottobre 1978, n. 627, e del D.M. 29 novembre 1978 e ss.mm.ii., da cui risulta l’ubicazione di ciascun bene",null,null,null,null,"Obbl. in caso di spese specifiche"]
[]
[]
[]
[]
[]
[null,null,null,"LUOGO E DATA",null,null,null,null,{"$f":"+I46","v":"FIRMA DIGITALE DEL "}]
[null,null,null,{"$f":"+CONCATENATE(ANAGRAFICA!C43,\" \",TEXT(TODAY(),\"gg/mm/aaaa\"))","v":" 12/12/2025"}]

{"sheet":"3°SAL_Credito","index":10,"n_rows":14,"n_cols":12,"rows_kept":14,"cut":false,"hidden":false,"merged":[[2,0,2,11],[10,0,10,11],[12,6,13,11]]}
[]
[]
["Dettaglio delle agevolazione fruite sui beni oggetto dell'investimento"]
["Partita IVA","Fornitore ","N. fatt.","Data fatt.","Bene","Valore Imponibile  Bene","Tipo di agevolazione","Agevolazione maturata totale","di cui fruita (rif. compensazioni)\n(A)","Vantaggio fiscale (es. IRES/IRAP) su agevolazione fruita\n(B)","Totale ulteriori agevolazioni fruite\n(A+B)","CUP (ove presente)"]
[]
[]
[]
[null,null,null,null,null,{"$f":"+SUM(F5:F7)","v":0},null,{"$f":"+SUM(H5:H7)","v":0},{"$f":"+SUM(I5:I7)","v":0},{"$f":"+SUM(J5:J7)","v":0},{"$f":"+SUM(K5:K7)","v":0}]
[]
[]
["La tabella deve riepilogare i beni oggetto di altre agevolazione (credito di imposta, fondi regionali ecc..), indicando le relative fatture e fornitore. Pertanto beni/fatture che non si riferiscono a beni oggetto di altre agevolazioni non dovranno essere elencati/e."]
[]
["LUOGO E DATA",null,null,null,null,null,{"$f":"+CONCATENATE(\"FIRMA DIGITALE DEL \",ANAGRAFICA!C5)","v":"FIRMA DIGITALE DEL "}]
[{"$f":"+CONCATENATE(ANAGRAFICA!C8,\" \",TEXT(TODAY(),\"gg/mm/aaaa\"))","v":" 12/12/2025"}]

{"sheet":"4°SAL","index":11,"n_rows":91,"n_cols":12,"rows_kept":91,"cut":false,"hidden":false,"merged":[[36,6,36,11],[30,1,30,2],[30,3,30,11],[15,1,15,10],[72,1,72,5],[50,1,50,6],[47,1,47,10],[21,1,23,10],[28,1,28,10],[44,8,45,10],[25,1,25,10],[64,1,64,5],[70,1,70,6],[71,1,71,5],[17,1,17,10],[65,1,65,5],[9,1,10,1],[9,3,10,10],[12,3,12,4],[12,7,12,10],[14,3,14,10],[1,1,1,10],[3,3,3,8],[5,1,5,7],[5,8,5,10],[7,1,7,10],[89,8,90,10],[49,1,49,8],[82,1,82,5],[83,1,83,5],[20,1,20,10],[55,1,55,6],[56,1,56,5],[42,1,43,10],[40,1,40,4],[79,1,79,5],[80,1,80,5],[81,1,81,5],[74,1,74,5],[75,1,75,5],[76,1,76,5],[77,1,77,5],[78,1,78,5],[62,1,62,5],[63,1,63,5],[59,1,59,6],[60,1,60,5],[61,1,61,5],[66,1,66,5],[68,1,68,5],[73,1,73,5],[67,1,67,5]]}
[]
[" ","FACSIMILE DI RICHIESTA EROGAZIONE 4° SAL"]
[]
[null,"La Società",null,{"$f":"+IF(ANAGRAFICA!C6=\"\",\"\",ANAGRAFICA!C6)","v":""},null,null,null,null,null,"Progetto N.",{"$f":"+IF(ANAGRAFICA!C2=\"\",\"\",ANAGRAFICA!C2)","v":""}]
[]
[null,"nella persona del ",null,null,null,null,null,null,{"$f":"+IF(ANAGRAFICA!C5=\"\",\"\",ANAGRAFICA!C5)","v":""}]
[]
[null,{"$f":"IF(OR(ANAGRAFICA!C3=\"\",ANAGRAFICA!C4=\"\"),\"\",CONCATENATE(ANAGRAFICA!C3, \" codice fiscale \",ANAGRAFICA!C4))","v":""}]
[]
[null,"Sede in",null,{"$f":"+IF(OR(ANAGRAFICA!C7=\"\",ANAGRAFICA!C8=\"\",ANAGRAFICA!H8=\"\"),\"\",CONCATENATE(ANAGRAFICA!C7,\" - \",ANAGRAFICA!C8,\" (\",ANAGRAFICA!H8,\")\"))","v":""}]
[]
[]
[null,"Partita IVA",null,{"$f":"+IF(ANAGRAFICA!C11=\"\",\"\",ANAGRAFICA!C11)","v":""},null,null,"CCIAA",{"$f":"+IF(OR(ANAGRAFICA!C12=\"\",ANAGRAFICA!E12=\"\"),\"\",CONCATENATE(ANAGRAFICA!C12,\" al N° \",ANAGRAFICA!E12))","v":""}]
[]
[null,"PEC",null,{"$f":"+ANAGRAFICA!C10","v":0}]
[null,"CHIEDE L'EROGAZIONE DEL 4° SAL"]
[null,"sulla base di un importo rendicontato pari ad €",null,null,{"$f":"+G36+IF(F39=\"NO\",0,F40)","v":0},"così ripartito:"]
[null,{"$f":"IFERROR(_xlfn.CONCAT(\"- Investimenti: € \",IF(G36=0,0,TEXT(G36,\"#.##0.00,00\")),\" corrispondenti al \",TEXT(G36/ANAGRAFICA!C17,\"0,0%\"), \" del valore degli investimenti ammessi alle agevolazioni pari ad  € \",TEXT(ANAGRAFICA!C17,\"#.##0.00\"),\" e così suddivisi:\"),\"\")","v":""}]
[null,"- Fatture NON quietanzate pari ad",null,null,{"$f":"SUMIFS(G33:G35,J33:J35,\"SI\")","v":0}]
[null,"- Capitale Circolante:",null,null,{"$f":"+IF(F39=\"NO\",0,F40)","v":0}]
[null,{"$f":"+CONCATENATE(\"La somma eventualmente erogata dovrà essere accreditata per la quota parte relativa agli investimenti sul c/c vincolato istituito presso l'istituto di credito \",ANAGRAFICA!K10,\" - Filiale/Agenzia \",ANAGRAFICA!K11,\" - IBAN \",ANAGRAFICA!K13,\" e per la quota parte relativa alle spese per capitale circolante sul c/c bancario intestato alla Società istituito presso l'istituto di credito\",ANAGRAFICA!K16,\" - Filiale/Agenzia \",ANAGRAFICA!K17,\" - IBAN \",ANAGRAFICA!K19)","v":"La somma eventualmente erogata dovrà essere accreditata per la quota parte relativa agli investimenti sul c/c vincolato istituito presso l'istituto di credito  - Filiale/Agenzia  - IBAN  e per la quota parte relativa alle spese per capitale circolante sul c/c bancario intestato alla Società istituito presso l'istituto di credito - Filiale/Agenzia  - IBAN "}]
[null,"Detto conto corrente vincolato è dedicato, al ricevimento delle agevolazioni concesse alla medesima società beneficiaria ai sensi dell'art. 10 comma 6 del decreto del Ministro dello sviluppo economico, di concerto con il Ministero dell’economia e delle finanze del 4 dicembre 2020."]
[]
[]
[]
[null,"DETTAGLIO FATTURE RENDICONTATE"]
[]
[null,"1. ELENCO COMPLESSIVO DELLE FATTURE RENDICONTATE"]
[null,{"$f":"+CONCATENATE(\"Valore minimo rendicontabile è pari ad € \",TEXT(ANAGRAFICA!C17*0.1,\"#.##0.00\"))","v":"Valore minimo rendicontabile è pari ad € 000"}]
[]
[null,"Fornitore"]
[null,"Partita IVA","Denominazione","N. fatt.","Data fatt.","Descrizione","Imponibile (*)","IVA e altri oneri","Importo totale ","C/C Vincolato","Categoria di spesa","IBAN Fornitore"]
[]
[]
[]
[null,null,null,null,null,null,{"$f":"SUM(G33:G35)","v":0}]
[null,null,null,null,null,null,"(*) Nel caso in cui l'impresa svolga esclusivamente attività ricompresa nel settore medico/sanitario (esente IVA),  il costo dell'IVA indetraibile, qualora richiesto ad agevolazione e come indicato nel Piano Esecutivo, va indicato insieme al valore dell'imponibile."]
[]
[null,"Richiesta Capitale Circolante",null,null,null,null,{"$f":"+IF(F39=\"SI\",CONCATENATE(\"Importo massimo richiedibile pari ad € \",TEXT(G36*ANAGRAFICA!F18,\"#.##0.00\")),\"\")","v":""}]
[null,"Valore Capitale Circolante richiesto"]
[null,"La beneficiaria ha maturato e fruito di altre agevolazioni sui beni rendicontati"]
[]
[null,"Tutte le fatture devono essere registrate nei libri contabili e/o registri fiscali previsti dal regime fiscale adottato e nel rispetto della normativa vigente"]
[]
[null,null,null,"LUOGO E DATA",null,null,null,null,{"$f":"+CONCATENATE(\"FIRMA DIGITALE DEL \",ANAGRAFICA!C5)","v":"FIRMA DIGITALE DEL "}]
[null,null,null,{"$f":"+CONCATENATE(ANAGRAFICA!C8,\" \",TEXT(TODAY(),\"gg/mm/aaaa\"))","v":" 12/12/2025"}]
[]
[null,"LA RICHIESTA DI EROGAZIONE DEVE ESSERE CORREDATA PENA DECADENZA DALLA SEGUENTE DOCUMENTAZIONE"]
[]
[null,"DICHIARAZIONI RICHIESTE PER ANTIMAFIA"]
[null,"TIPOLOGIA SOCIETARIA",null,null,null,null,null,"Società","Coop"]
[null,"ANT 1 - Dichiarazione Antimafia Società",null,null,null,null,null,{"$f":"+IF(ANAGRAFICA!$H$6=\"\",\"\",IF(AND(ANAGRAFICA!$C$22>=150000,AND(ANAGRAFICA!$H$6<>\"Soc. Coop.\",ANAGRAFICA!$H$6<>\"Soc. Coop. STP\")),\"obbl.\",\"\"))","v":""}]
[null,"ANT 2- Dichiarazione Antimafia Cooperative",null,null,null,null,null,null,{"$f":"+IF(AND(ANAGRAFICA!$C$22>=150000,OR(ANAGRAFICA!$H$6=\"Soc. Coop.\",ANAGRAFICA!$H$6=\"Soc. Coop. STP\")),\"obbl.\",\"\")","v":""}]
[null,"ANT 3 - Familiari ",null,null,null,null,null,{"$f":"+IF(H52=\"obbl.\",\"obbl.\",\"\")","v":""},{"$f":"+IF(I53=\"obbl.\",\"obbl.\",\"\")","v":""}]
[]
[null,"GARANZIE"]
[null,"Privilegio Speciale",null,null,null,null,{"$f":"+IF(ANAGRAFICA!$C$20>=250000,\"Obbl.\",\"\")","v":""}]
[]
[]
[null,"DICHIARAZIONE SOSTITUTIVE ATTO NOTORIO"]
[null,"MOD 1 - Dichiarazioni Complessive",null,null,null,null,"Obbl."]
[null,"MOD 2 - Dichiarazione Fornitori",null,null,null,null,"Obbl."]
[null,"MOD 3 - Dichiarazione Assenza Precedenti",null,null,null,null,"Obbl."]
[null,"MOD 4 – Dichiarazioni Cedente",null,null,null,null,"Obbl. in caso di spese specifiche"]
[null,"MOD 5 – Dichiarazione Impegno Cessionario",null,null,null,null,"Obbl. in caso di spese specifiche"]
[null,"MOD 6 - Antiriciclaggio (solo progetti diversi da PNRR)",null,null,null,null,"Obbl."]
[null,"MOD 7 - PNRR (solo progetti PNRR)",null,null,null,null,"Obbl."]
[null,"MOD 9 - Dichiarazione DURC",null,null,null,null,"Obbl."]
[null,"MOD 10 - Dichiarazione coordinate bancarie fornitori e capitale circolante",null,null,null,null,"Obbl."]
[]
[null,"ATTESTAZIONI E DOCUMENTI"]
[null," - Copia di un documento di riconoscimento in corso di validità",null,null,null,null,"Obbl."]
[null," - Copia della polizza assicurativa, contro il rischio di incendio/accessori",null,null,null,null,"Obbl."]
[null," - Copia dei titoli di spesa delle spese agevolate  e della contrattualistica di fornitura [Nota: I titoli di spesa devono riportare, nell’oggetto o nel campo note, l’indicazione del codice CUP (Codice Unico progetto) o della misura agevolativa “Nuove imprese a Tasso Zero”]",null,null,null,null,"Obbl."]
[null," - Copia sottoscritta digitalmente dal Legale Rappresentante del libro cespiti ammortizzabili con evidenza delle registrazioni delle fatture rendicontate ",null,null,null,null,"Obbl."]
[null," - Copia sottoscritta digitalmente dal Legale Rappresentante del libro giornale, con evidenza delle registrazioni delle fatture rendicontate ",null,null,null,null,"Obbl."]
[null,"- Estratto del conto corrente vincolato",null,null,null,null,"Obbl."]
[null," - Situazione patrimoniale, all’ultima data utile, con evidenza dell'eventuale costituzione dell'impegno (rif. delibera assembleare)  ad effettuare l'apporto finanziario privato ed i relativi versamenti",null,null,null,null,"Obbl."]
[]
[]
[null," - Relazione Tecnica del Direttore Lavori/Cantiere dello stato di avanzamento dei lavori connessi alle Opere Murarie (agevolate e non agevolate) relativa a:\n a) richieste e rilascio di permessi ed autorizzazioni abilitative all'avvio delle opere\n b) lavori realizzati\n c) lavori da realizzare\n d) variazioni eventuali intervenute in corso d'opera rispetto agli interventi approvati",null,null,null,null,"Obbl. in caso di spese per Opere Murarie"]
[null," - Copia dei contratto di acquisto dei beni mobili registrati e - in caso di mezzi targati - della carta di circolazione e del certificato di proprietà",null,null,null,null,"Obbl. in caso di spese specifiche"]
[null," - Attestazione dello stato di avanzamento degli interventi e della realizzazione del piano degli investimenti delle spese non agevolate (se previste), funzionali alla realizzazione del programma di investimento ",null,null,null,null,"Obbl. per spese realizzate ma non agevolate"]
[null,"- In caso di rendicontazione di spese relative ad attrezzature installate presso unità produttive diverse dall’unità interessata dal programma agevolato:\na) copia del libro dei beni prestati a terzi\nb) copia del titolo di disponibilità in uso a titolo gratuito, da parte del cessionario, delle attrezzature agevolate installate presso unità produttive diverse dall’unità produttiva interessata dal programma agevolato\nc) copia dei documenti di trasporto tenuti ai sensi del D.P.R. 6 ottobre 1978, n. 627, e del D.M. 29 novembre 1978 e ss.mm.ii., da cui risulta l’ubicazione di ciascun bene",null,null,null,null,"Obbl. in caso di spese specifiche"]
[]
[]
[]
[]
[]
[null,null,null,"LUOGO E DATA",null,null,null,null,{"$f":"+I45","v":"FIRMA DIGITALE DEL "}]
[null,null,null,{"$f":"+CONCATENATE(ANAGRAFICA!C43,\" \",TEXT(TODAY(),\"gg/mm/aaaa\"))","v":" 12/12/2025"}]

{"sheet":"4°SAL_Credito","index":12,"n_rows":14,"n_cols":12,"rows_kept":14,"cut":false,"hidden":false,"merged":[[2,0,2,11],[10,0,10,11],[12,6,13,11]]}
[]
[]
["Dettaglio delle agevolazione fruite sui beni oggetto dell'investimento"]
["Partita IVA","Fornitore ","N. fatt.","Data fatt.","Bene","Valore Imponibile  Bene","Tipo di agevolazione","Agevolazione maturata totale","di cui fruita (rif. compensazioni)\n(A)","Vantaggio fiscale (es. IRES/IRAP) su agevolazione fruita\n(B)","Totale ulteriori agevolazioni fruite\n(A+B)","CUP (ove presente)"]
[]
[]
[]
[null,null,null,null,null,{"$f":"+SUM(F5:F7)","v":0},null,{"$f":"+SUM(H5:H7)","v":0},{"$f":"+SUM(I5:I7)","v":0},{"$f":"+SUM(J5:J7)","v":0},{"$f":"+SUM(K5:K7)","v":0}]
[]
[]
["La tabella deve riepilogare i beni oggetto di altre agevolazione (credito di imposta, fondi regionali ecc..), indicando le relative fatture e fornitore. Pertanto beni/fatture che non si riferiscono a beni oggetto di altre agevolazioni non dovranno essere elencati/e."]
[]
["LUOGO E DATA",null,null,null,null,null,{"$f":"+CONCATENATE(\"FIRMA DIGITALE DEL \",ANAGRAFICA!C5)","v":"FIRMA DIGITALE DEL "}]
[{"$f":"+CONCATENATE(ANAGRAFICA!C8,\" \",TEXT(TODAY(),\"gg/mm/aaaa\"))","v":" 12/12/2025"}]

{"sheet":"SALDO","index":13,"n_rows":119,"n_cols":11,"rows_kept":119,"cut":false,"hidden":false,"merged":[[71,1,71,5],[30,1,30,2],[63,1,63,5],[70,1,70,5],[69,1,69,5],[64,1,64,5],[41,1,41,4],[72,1,72,5],[65,1,65,5],[21,1,23,10],[28,1,28,10],[12,3,12,4],[12,7,12,10],[14,3,14,10],[15,1,15,10],[20,1,20,10],[25,1,25,10],[17,1,17,10],[43,1,43,4],[39,1,39,4],[40,1,40,4],[50,1,50,10],[47,8,48,10],[9,1,10,1],[9,3,10,10],[1,1,1,10],[3,3,3,8],[5,1,5,7],[5,8,5,10],[7,1,7,10],[37,6,37,10],[93,1,93,5],[117,8,118,10],[52,1,52,8],[45,1,46,10],[92,1,92,5],[81,1,81,5],[82,1,82,5],[53,1,53,6],[68,1,68,5],[79,1,79,6],[66,1,66,5],[67,1,67,5],[58,1,58,6],[59,1,59,5],[62,1,62,6],[101,1,101,5],[102,1,102,5],[103,1,103,5],[104,1,104,5],[95,1,95,6],[96,1,96,5],[97,1,97,5],[98,1,98,5],[99,1,99,5],[74,1,74,6],[75,1,75,5],[76,1,76,5],[77,1,77,5],[100,1,100,5],[87,1,87,5],[88,1,88,5],[91,1,91,5],[80,1,80,5],[83,1,83,5],[84,1,84,5],[85,1,85,5],[86,1,86,5],[89,1,89,5],[90,1,90,5]]}
[]
[" ","FACSIMILE DI RICHIESTA EROGAZIONE SALDO"]
[]
[null,"La Società",null,{"$f":"+IF(ANAGRAFICA!C6=\"\",\"\",ANAGRAFICA!C6)","v":""},null,null,null,null,null,"Progetto N.",{"$f":"+IF(ANAGRAFICA!C2=\"\",\"\",ANAGRAFICA!C2)","v":""}]
[]
[null,"nella persona del ",null,null,null,null,null,null,{"$f":"+IF(ANAGRAFICA!C5=\"\",\"\",ANAGRAFICA!C5)","v":""}]
[]
[null,{"$f":"IF(OR(ANAGRAFICA!C3=\"\",ANAGRAFICA!C4=\"\"),\"\",CONCATENATE(ANAGRAFICA!C3, \" codice fiscale \",ANAGRAFICA!C4))","v":""}]
[]
[null,"Sede in",null,{"$f":"+IF(OR(ANAGRAFICA!C7=\"\",ANAGRAFICA!C8=\"\",ANAGRAFICA!H8=\"\"),\"\",CONCATENATE(ANAGRAFICA!C7,\" - \",ANAGRAFICA!C8,\" (\",ANAGRAFICA!H8,\")\"))","v":""}]
[]
[]
[null,"Partita IVA",null,{"$f":"+IF(ANAGRAFICA!C11=\"\",\"\",ANAGRAFICA!C11)","v":""},null,null,"CCIAA",{"$f":"+IF(OR(ANAGRAFICA!C12=\"\",ANAGRAFICA!E12=\"\"),\"\",CONCATENATE(ANAGRAFICA!C12,\" al N° \",ANAGRAFICA!E12))","v":""}]
[]
[null,"PEC",null,{"$f":"+ANAGRAFICA!C10","v":0}]
[null,"CHIEDE L'EROGAZIONE DEL SALDO"]
[null,"sulla base di un importo rendicontato pari ad €",null,null,{"$f":"+G37+IF(F40=\"NO\",F41,E20)","v":0},"così ripartito:"]
[null,{"$f":"IFERROR(_xlfn.CONCAT(\"- Investimenti: € \",IF(G37=0,0,TEXT(G37,\"#.##0.00,00\")),\" corrispondenti al \",TEXT(G37/ANAGRAFICA!C17,\"0,0%\"), \" del valore degli investimenti ammessi alle agevolazioni pari ad  € \",TEXT(ANAGRAFICA!C17,\"#.##0.00,00\"),\" e così suddivisi:\"),\"\")","v":""}]
[null,"- Fatture NON quietanzate pari ad",null,null,{"$f":"+G37","v":0}]
[null,"- Capitale Circolante:",null,null,{"$f":"+IF(OR(F40=\"NO\",F40=\"\"),F41,ANAGRAFICA!C18-NAVIGATORE!G8-NAVIGATORE!G9-NAVIGATORE!G10-NAVIGATORE!G11)","v":0}]
[null,{"$f":"+CONCATENATE(\"La somma eventualmente erogata dovrà essere accreditata per la quota parte relativa agli investimenti sul c/c vincolato istituito presso l'istituto di credito \",ANAGRAFICA!K10,\" - Filiale/Agenzia \",ANAGRAFICA!K11,\" - IBAN \",ANAGRAFICA!K13,\" e per la quota parte relativa alle spese per capitale circolante sul c/c bancario intestato alla Società istituito presso l'istituto di credito\",ANAGRAFICA!K16,\" - Filiale/Agenzia \",ANAGRAFICA!K17,\" - IBAN \",ANAGRAFICA!K19)","v":"La somma eventualmente erogata dovrà essere accreditata per la quota parte relativa agli investimenti sul c/c vincolato istituito presso l'istituto di credito  - Filiale/Agenzia  - IBAN  e per la quota parte relativa alle spese per capitale circolante sul c/c bancario intestato alla Società istituito presso l'istituto di credito - Filiale/Agenzia  - IBAN "}]
[null,"Detto conto corrente vincolato è dedicato, al ricevimento delle agevolazioni concesse alla medesima società beneficiaria ai sensi dell'art. 10 comma 6 del decreto del Ministro dello sviluppo economico, di concerto con il Ministero dell’economia e delle finanze del 4 dicembre 2020."]
[]
[]
[]
[null,"DETTAGLIO FATTURE RENDICONTATE"]
[]
[null,"1. ELENCO COMPLESSIVO DELLE FATTURE RENDICONTATE"]
[null,{"$f":"+CONCATENATE(\"Valore minimo rendicontabile è pari ad € \",TEXT(ANAGRAFICA!C17*0.1,\"#.##0.00\"))","v":"Valore minimo rendicontabile è pari ad € 000"}]
[]
[null,"Fornitore"]
[null,"Partita IVA","Denominazione","N. fatt.","Data fatt.","Descrizione","Imponibile (*)","IVA e altri oneri","Importo totale ","Categoria di spesa","IBAN Fornitore"]
[]
[]
[]
[]
[null,null,null,null,null,null,{"$f":"SUM(G33:G36)","v":0}]
[null,null,null,null,null,null,"(*) Nel caso in cui l'impresa svolga esclusivamente attività ricompresa nel settore medico/sanitario (esente IVA),  il costo dell'IVA indetraibile, qualora richiesto ad agevolazione e come indicato nel Piano Esecutivo, va indicato insieme al valore dell'imponibile."]
[]
[null,"La beneficiaria richiede tutta l'agevolazione residua concedibile per Capitale Circolante"]
[null,"Valore Capitale Circolante richiesto"]
[null,"La beneficiaria intende massimizzare le agevolazioni concedibili, richiedendo contestualmente all'Agenzia di autorizzare le variazioni apportate al programma di spesa, sulla base degli investimenti complessivamente rendicontati"]
[]
[null,"La beneficiaria ha maturato e fruito di altre agevolazioni sui beni rendicontati"]
[]
[null,"Tutte le fatture devono essere registrate nei libri contabili e/o registri fiscali previsti dal regime fiscale adottato e nel rispetto della normativa vigente"]
[]
[null,null,null,"LUOGO E DATA",null,null,null,null,{"$f":"+CONCATENATE(\"FIRMA DIGITALE DEL \",ANAGRAFICA!C5)","v":"FIRMA DIGITALE DEL "}]
[null,null,null,{"$f":"+CONCATENATE(ANAGRAFICA!C8,\" \",TEXT(TODAY(),\"gg/mm/aaaa\"))","v":" 12/12/2025"}]
[]
[null,"LA RICHIESTA DI EROGAZIONE DEVE ESSERE CORREDATA PENA DECADENZA DALLA SEGUENTE DOCUMENTAZIONE"]
[]
[null,"DICHIARAZIONI RICHIESTE PER ANTIMAFIA"]
[null,"TIPOLOGIA SOCIETARIA",null,null,null,null,null,"Società","Coop"]
[null,"ANT 1 - Dichiarazione Antimafia Società",null,null,null,null,null,{"$f":"+IF(ANAGRAFICA!$H$6=\"\",\"\",IF(AND(ANAGRAFICA!$C$22>=150000,AND(ANAGRAFICA!$H$6<>\"Soc. Coop.\",ANAGRAFICA!$H$6<>\"Soc. Coop. STP\")),\"obbl.\",\"\"))","v":""}]
[null,"ANT 2- Dichiarazione Antimafia Cooperative",null,null,null,null,null,null,{"$f":"+IF(AND(ANAGRAFICA!$C$22>=150000,OR(ANAGRAFICA!$H$6=\"Soc. Coop.\",ANAGRAFICA!$H$6=\"Soc. Coop. STP\")),\"obbl.\",\"\")","v":""}]
[null,"ANT 3 - Familiari ",null,null,null,null,null,{"$f":"+IF(H55=\"obbl.\",\"obbl.\",\"\")","v":""},{"$f":"+IF(I56=\"obbl.\",\"obbl.\",\"\")","v":""}]
[]
[null,"GARANZIE"]
[null,"Privilegio Speciale",null,null,null,null,{"$f":"+IF(ANAGRAFICA!$C$20>=250000,\"Obbl.\",\"\")","v":""}]
[]
[]
[null,"DICHIARAZIONE SOSTITUTIVE ATTO NOTORIO"]
[null,"MOD 1 - Dichiarazioni Complessive",null,null,null,null,"Obbl."]
[null,"MOD 2 - Dichiarazione Fornitori",null,null,null,null,"Obbl."]
[null,"MOD 3 - Dichiarazione Assenza Precedenti",null,null,null,null,"Obbl."]
[null,"MOD 4 – Dichiarazioni Cedente",null,null,null,null,"Obbl. in caso di spese specifiche"]
[null,"MOD 5 – Dichiarazione Impegno Cessionario",null,null,null,null,"Obbl. in caso di spese specifiche"]
[null,"MOD 6 - Antiriciclaggio (solo progetti diversi da PNRR)",null,null,null,null,"Obbl."]
[null,"MOD 7 - PNRR (solo progetti PNRR)",null,null,null,null,"Obbl."]
[null,"MOD 8 - Dichiarazione Ultimazione Programma",null,null,null,null,"Obbl."]
[null,"MOD 9 - Dichiarazione DURC",null,null,null,null,"Obbl."]
[null,"MOD 10 - Dichiarazione coordinate bancarie fornitori e capitale circolante",null,null,null,null,"Obbl."]
[]
[null,"DOCUMENTAZIONE PER ATTIVITA' DI MONITORAGGIO AMMINISTRATIVO"]
[null,"- Mastrini contabili di tutti i fornitori rendicontati",null,null,null,null,"Obbl."]
[null,"- in presenza di quietanze liberatorie (MOD2 – Dichiarazioni fornitori) sottoscritte con firma autografa e doc. identità, trasmetterne l'originale tramite raccomandata A/R al seguente indirizzo: Agenzia nazionale per l'attrazione degli investimenti e lo sviluppo d'impresa SpA, Via P. Boccanelli 30 - 00138 Roma (RM)",null,null,null,null,"Obbl."]
[null,"- Relazione attestante le eventuali modifiche apportate al progetto approvato in termini di variazioni del portafoglio prodotti/servizi previsto e/o di capacità produttiva e/o di caratteristiche distintive dell'iniziativa proposta (es. vantaggio competitivo), sottoscritta digitalmente dal Legale Rappresentante",null,null,null,null,"Obbl. per casistiche specifiche"]
[]
[null,"ATTESTAZIONI E DOCUMENTI"]
[null," - Copia di un documento di riconoscimento in corso di validità",null,null,null,null,"Obbl."]
[null," - Copia della polizza assicurativa, contro il rischio di incendio/accessori",null,null,null,null,"Obbl."]
[null," - Copia dei titoli di spesa delle spese agevolate  e della contrattualistica di fornitura [Nota: I titoli di spesa devono riportare, nell’oggetto o nel campo note, l’indicazione del codice CUP (Codice Unico progetto) o della misura agevolativa “Nuove imprese a Tasso Zero”]",null,null,null,null,"Obbl."]
[null," - Copia sottoscritta digitalmente dal Legale Rappresentante del libro cespiti ammortizzabili con evidenza delle registrazioni delle fatture rendicontate ",null,null,null,null,"Obbl."]
[null," - Copia sottoscritta digitalmente dal Legale Rappresentante del libro giornale, con evidenza delle registrazioni delle fatture rendicontate",null,null,null,null,"Obbl."]
[null,"- Estratto del conto corrente vincolato",null,null,null,null,"Obbl."]
[null," - Situazione patrimoniale, all’ultima data utile, con evidenza dell'eventuale costituzione dell'impegno (rif. delibera assembleare)  ad effettuare l'apporto finanziario privato ed i relativi versamenti",null,null,null,null,"Obbl."]
[]
[]
[null," - Ultimo bilancio approvato, o in assenza Situazione contabile all’ultima data utile sottoscritta digitalmente dal Legale Rappresentante e ove presente dal soggetto deputato alla tenuta delle scritture contabili, con evidenza dei costi sostenuti a titolo di capitale circolante netto (cfr. Materie prime - Servizi - Godimento di beni di terzi)",null,null,null,null,"Obbl."]
[null," - Perizia Asseverata che attesti la rispondenza dell’immobile agli specifici vincoli edilizi, urbanistici e di destinazione d’uso ovvero la loro avvenuta richiesta, laddove gli stessi non siano stati ancora rilasciati",null,null,null,null,"Obbl."]
[null," - Copia dei contratto di acquisto dei beni mobili registrati e - in caso di mezzi targati - della carta di circolazione e del certificato di proprietà",null,null,null,null,"Obbl. in caso di spese specifiche"]
[null," - Attestazione dello stato di avanzamento degli interventi e della realizzazione del piano degli investimenti delle spese non agevolate (se previste), funzionali alla realizzazione del programma di investimento ",null,null,null,null,"Obbl. per spese realizzate ma non agevolate"]
[null,"- In caso di rendicontazione di spese relative ad attrezzature installate presso unità produttive diverse dall’unità interessata dal programma agevolato:\na) copia del libro dei beni prestati a terzi\nb) copia del titolo di disponibilità in uso a titolo gratuito, da parte del cessionario, delle attrezzature agevolate installate presso unità produttive diverse dall’unità produttiva interessata dal programma agevolato\nc) copia dei documenti di trasporto tenuti ai sensi del D.P.R. 6 ottobre 1978, n. 627, e del D.M. 29 novembre 1978 e ss.mm.ii., da cui risulta l’ubicazione di ciascun bene",null,null,null,null,"Obbl. in caso di spese specifiche"]
[]
[null,"DOCUMENTAZIONE TECNICA"]
[null,"- Documentazione attestante la conformità urbanistica ed edilizia dell’immobile sede dell’attività agevolata a partire dallo stato ante opere (in caso di SAL unico a saldo, presentare Perizia asseverata).",null,null,null,null,"Obbl."]
[null,"- Documentazione attestante l’iter autorizzativo seguito ai fini del regolare avvio/esecuzione degli interventi, oggetto del programma agevolato, relativi a opere murarie e assimilate (es: Pdc, CILA, SCIA, sanatorie, elaborati grafici di progetto allegati ai titoli autorizzativi; Certificato di regolare esecuzione, Fine Lavori, Collaudo, Segnalazione certificata di Agibilità, Certificati di conformità impianti).",null,null,null,null,"Obbl."]
[null,"- Titoli autorizzativi e licenze necessari per il regolare svolgimento delle attività a seguito della realizzazione del programma di investimenti, anche in riferimento all’organizzazione di eventuali attività fuori dalla sede operativa (es: autorizzazioni e permessi comunali). Esempi:\n•\tS.C.I.A. Commerciale comprensiva della planimetria allegata;\n•\tAdempimenti in materia di sicurezza antincendio (S.C.I.A. depositata al Comando dei VVF, C.P.I. aggiornato, ecc.);\n•\tAdempimenti in materia ambientale (autorizzazioni allo scarico, A.U.A., A.I.A., ecc.);\n•\tAutorizzazioni sanitarie,\n•\tEvidenza del regolare allaccio alla rete elettrica.",null,null,null,null,"Obbl."]
[null,"- Certificati di conformità CE e numero di matricola (ove presente) di tutti i beni richiesti alle agevolazioni",null,null,null,null,"Obbl."]
[null,"- Layout in scala, corrispondente allo stato di fatto dell’immobile",null,null,null,null,"Obbl."]
[null,"- Computo metrico a consuntivo dettagliato delle opere realizzate, timbrato e firmato dal Direttore Lavori, con specifica delle ditte realizzatrici per ogni singola voce di spesa",null,null,null,null,"Obbl. in caso di spese specifiche"]
[null,"- Visura catastale aggiornata",null,null,null,null,"Obbl. in caso di spese specifiche"]
[null,"- \tPlanimetria aggiornata post realizzazione Opere Murarie",null,null,null,null,"Obbl. in caso di spese specifiche"]
[null,"- Con riferimento alle spese inerenti i programmi e piattaforme informatiche, servizi per le tecnologie dell’informazione e della comunicazione (es. progettazione di architetture telematiche, di hosting, di gestione data-base), fornire documentazione utile a descrivere i servizi acquisiti (quale, ad esempio: relazione generale e cronoprogramma delle attività svolte dal fornitore, analisi dei requisiti funzionali, manuali d’uso, certificati di garanzia, crono spesa con evidenza delle tariffe per gg. uomo e dei gg. uomo impiegati per ciascuna fase di sviluppo).",null,null,null,null,"Obbl. in caso di spese specifiche"]
[]
[]
[]
[]
[]
[]
[]
[]
[]
[]
[]
[]
[null,null,null,"LUOGO E DATA",null,null,null,null,{"$f":"+I48","v":"FIRMA DIGITALE DEL "}]
[null,null,null,{"$f":"+CONCATENATE(ANAGRAFICA!C46,\" \",TEXT(TODAY(),\"gg/mm/aaaa\"))","v":" 12/12/2025"}]

{"sheet":"SAL_a Saldo_Credito","index":14,"n_rows":14,"n_cols":12,"rows_kept":14,"cut":false,"hidden":false,"merged":[[2,0,2,11],[10,0,10,11],[12,6,13,11]]}
[]
[]
["Dettaglio delle agevolazione fruite sui beni oggetto dell'investimento"]
["Partita IVA","Fornitore ","N. fatt.","Data fatt.","Bene","Valore Imponibile  Bene","Tipo di agevolazione","Agevolazione maturata totale","di cui fruita (rif. compensazioni)\n(A)","Vantaggio fiscale (es. IRES/IRAP) su agevolazione fruita\n(B)","Totale ulteriori agevolazioni fruite\n(A+B)","CUP (ove presente)"]
[]
[]
[]
[null,null,null,null,null,{"$f":"+SUM(F5:F7)","v":0},null,{"$f":"+SUM(H5:H7)","v":0},{"$f":"+SUM(I5:I7)","v":0},{"$f":"+SUM(J5:J7)","v":0},{"$f":"+SUM(K5:K7)","v":0}]
[]
[]
["La tabella deve riepilogare i beni oggetto di altre agevolazione (credito di imposta, fondi regionali ecc..), indicando le relative fatture e fornitore. Pertanto beni/fatture che non si riferiscono a beni oggetto di altre agevolazioni non dovranno essere elencati/e."]
[]
["LUOGO E DATA",null,null,null,null,null,{"$f":"+CONCATENATE(\"FIRMA DIGITALE DEL \",ANAGRAFICA!C5)","v":"FIRMA DIGITALE DEL "}]
[{"$f":"+CONCATENATE(ANAGRAFICA!C8,\" \",TEXT(TODAY(),\"gg/mm/aaaa\"))","v":" 12/12/2025"}]

{"sheet":"UNICO","index":15,"n_rows":132,"n_cols":11,"rows_kept":132,"cut":false,"hidden":false,"merged":[[39,1,39,4],[40,1,40,4],[42,1,42,4],[9,1,10,1],[9,3,10,10],[12,3,12,4],[12,7,12,10],[14,3,14,10],[1,1,1,10],[3,3,3,8],[5,1,5,7],[5,8,5,10],[7,1,7,10],[88,1,88,6],[15,1,15,10],[20,1,20,10],[61,1,61,8],[62,1,62,6],[67,1,67,6],[51,1,51,10],[48,8,49,10],[21,1,23,10],[25,1,25,10],[44,1,44,4],[17,1,17,10],[31,1,31,2],[46,1,47,10],[37,6,37,10],[68,1,68,5],[100,1,100,5],[101,1,101,5],[123,8,124,10],[106,1,106,5],[107,1,107,5],[108,1,108,5],[109,1,109,5],[110,1,110,5],[111,1,111,5],[112,1,112,5],[83,1,83,6],[84,1,84,5],[79,1,79,5],[81,1,81,5],[69,1,69,5],[71,1,71,6],[72,1,72,5],[73,1,73,5],[78,1,78,5],[74,1,74,5],[75,1,75,5],[76,1,76,5],[77,1,77,5],[80,1,80,5],[85,1,85,5],[86,1,86,5],[103,1,103,6],[104,1,104,5],[105,1,105,5],[97,1,97,5],[98,1,98,5],[89,1,89,5],[90,1,90,5],[91,1,91,5],[92,1,92,5],[93,1,93,5],[96,1,96,5],[94,1,94,5],[95,1,95,5],[99,1,99,5]]}
[]
[" ","FACSIMILE DI RICHIESTA EROGAZIONE UNICA SOLUZIONE"]
[]
[null,"La Società",null,{"$f":"+IF(ANAGRAFICA!C6=\"\",\"\",ANAGRAFICA!C6)","v":""},null,null,null,null,null,"Progetto N.",{"$f":"+IF(ANAGRAFICA!C2=\"\",\"\",ANAGRAFICA!C2)","v":""}]
[]
[null,"nella persona del ",null,null,null,null,null,null,{"$f":"+IF(ANAGRAFICA!C5=\"\",\"\",ANAGRAFICA!C5)","v":""}]
[]
[null,{"$f":"IF(OR(ANAGRAFICA!C3=\"\",ANAGRAFICA!C4=\"\"),\"\",CONCATENATE(ANAGRAFICA!C3, \" codice fiscale \",ANAGRAFICA!C4))","v":""}]
[]
[null,"Sede in",null,{"$f":"+IF(OR(ANAGRAFICA!C7=\"\",ANAGRAFICA!C8=\"\",ANAGRAFICA!H8=\"\"),\"\",CONCATENATE(ANAGRAFICA!C7,\" - \",ANAGRAFICA!C8,\" (\",ANAGRAFICA!H8,\")\"))","v":""}]
[]
[]
[null,"Partita IVA",null,{"$f":"+IF(ANAGRAFICA!C11=\"\",\"\",ANAGRAFICA!C11)","v":""},null,null,"CCIAA",{"$f":"+IF(OR(ANAGRAFICA!C12=\"\",ANAGRAFICA!E12=\"\"),\"\",CONCATENATE(ANAGRAFICA!C12,\" al N° \",ANAGRAFICA!E12))","v":""}]
[]
[null,"PEC"]
[null,"CHIEDE L'EROGAZIONE IN UNICA SOLUZIONE"]
[null,"sulla base di un importo rendicontato pari ad €",null,null,{"$f":"+G37+IF(F40=\"NO\",F41,E20)","v":0},"così ripartito:"]
[null,{"$f":"IFERROR(_xlfn.CONCAT(\"- Investimenti: € \",IF(G37=0,0,TEXT(G37,\"#.##0.00,00\")),\" corrispondenti al \",TEXT(G37/ANAGRAFICA!C17,\"0,0%\"), \" del valore degli investimenti ammessi alle agevolazioni pari ad  € \",TEXT(ANAGRAFICA!C17,\"#.##0.00\"),\" e così suddivisi:\"),\"\")","v":""}]
[null,"- Fatture NON quietanzate pari ad",null,null,{"$f":"+G37","v":0}]
[null,"- Capitale Circolante:",null,null,{"$f":"+IF(OR($F$40=\"NO\",$F$40=\"\"),F41,IF(G37*ANAGRAFICA!F18<ANAGRAFICA!C18,G37*ANAGRAFICA!F18,ANAGRAFICA!C18))","v":0}]
[null,{"$f":"+CONCATENATE(\"La somma eventualmente erogata dovrà essere accreditata per la quota parte relativa agli investimenti sul c/c vincolato istituito presso l'istituto di credito \",ANAGRAFICA!K10,\" - Filiale/Agenzia \",ANAGRAFICA!K11,\" - IBAN \",ANAGRAFICA!K13,\" e per la quota parte relativa alle spese per capitale circolante sul c/c bancario intestato alla Società istituito presso l'istituto di credito\",ANAGRAFICA!K16,\" - Filiale/Agenzia \",ANAGRAFICA!K17,\" - IBAN \",ANAGRAFICA!K19)","v":"La somma eventualmente erogata dovrà essere accreditata per la quota parte relativa agli investimenti sul c/c vincolato istituito presso l'istituto di credito  - Filiale/Agenzia  - IBAN  e per la quota parte relativa alle spese per capitale circolante sul c/c bancario intestato alla Società istituito presso l'istituto di credito - Filiale/Agenzia  - IBAN "}]
[null,"Detto conto corrente è dedicato, ancorché in via non esclusiva, al ricevimento delle agevolazioni concesse alla medesima società beneficiaria ai sensi del Decreto interministeriale MiSE - MEF 4 dicembre 2020."]
[]
[]
[]
[null,"DETTAGLIO FATTURE RENDICONTATE"]
[]
[]
[]
[]
[null,"1. ELENCO COMPLESSIVO DELLE FATTURE RENDICONTATE"]
[null,"Fornitore"]
[null,"Partita IVA","Denominazione","N. fatt.","Data fatt.","Descrizione","Imponibile (*)","IVA e altri oneri","Importo totale ","Categoria di spesa","IBAN Fornitore"]
[]
[]
[]
[null,null,null,null,null,null,{"$f":"SUM(G34:G36)","v":0}]
[null,null,null,null,null,null,"(*) Nel caso in cui l'impresa svolga esclusivamente attività ricompresa nel settore medico/sanitario (esente IVA),  il costo dell'IVA indetraibile, qualora richiesto ad agevolazione e come indicato nel Piano Esecutivo, va indicato insieme al valore dell'imponibile."]
[]
[null,"La beneficiaria richiede tutta l'agevolazione concedibile per il Capitale Circolante",null,null,null,null,{"$f":"+IF(F40=\"SI\",CONCATENATE(\"Importo massimo richiedibile pari ad € \",IF(G37*ANAGRAFICA!F18<ANAGRAFICA!C18,TEXT(G37*ANAGRAFICA!F18,\"#.###.00,00\"),TEXT(ANAGRAFICA!C18,\"#.###.00,00\"))),\"\")","v":""}]
[null,"Valore Capitale Circolante richiesto"]
[]
[null,"La beneficiaria intende massimizzare le agevolazioni concedibili, richiedendo contestualmente all'Agenzia di autorizzare le variazioni apportate al programma di spesa, sulla base degli investimenti complessivamente rendicontati"]
[]
[null,"La beneficiaria ha maturato e fruito di altre agevolazioni sui beni rendicontati"]
[]
[null,"Tutte le fatture devono essere registrate nei libri contabili e/o registri fiscali previsti dal regime fiscale adottato e nel rispetto della normativa vigente"]
[]
[null,null,null,"LUOGO E DATA",null,null,null,null,{"$f":"+CONCATENATE(\"FIRMA DIGITALE DEL \",ANAGRAFICA!C5)","v":"FIRMA DIGITALE DEL "}]
[null,null,null,{"$f":"+CONCATENATE(ANAGRAFICA!C8,\" \",TEXT(TODAY(),\"gg/mm/aaaa\"))","v":" 12/12/2025"}]
[]
[null,"LA RICHIESTA DI EROGAZIONE DEVE ESSERE CORREDATA PENA DECADENZA DALLA SEGUENTE DOCUMENTAZIONE"]
[]
[]
[]
[]
[]
[]
[]
[]
[]
[null,"DICHIARAZIONI RICHIESTE PER ANTIMAFIA"]
[null,"TIPOLOGIA SOCIETARIA",null,null,null,null,null,"Società","Coop"]
[null,"ANT 1 - Dichiarazione Antimafia Società",null,null,null,null,null,{"$f":"+IF(ANAGRAFICA!$H$6=\"\",\"\",IF(AND(ANAGRAFICA!$C$22>=150000,AND(ANAGRAFICA!$H$6<>\"Soc. Coop.\",ANAGRAFICA!$H$6<>\"Soc. Coop. STP\")),\"obbl.\",\"\"))","v":""}]
[null,"ANT 2- Dichiarazione Antimafia Cooperative",null,null,null,null,null,null,{"$f":"+IF(AND(ANAGRAFICA!$C$22>=150000,OR(ANAGRAFICA!$H$6=\"Soc. Coop.\",ANAGRAFICA!$H$6=\"Soc. Coop. STP\")),\"obbl.\",\"\")","v":""}]
[null,"ANT 3 - Familiari ",null,null,null,null,null,{"$f":"+IF(H64=\"obbl.\",\"obbl.\",\"\")","v":""},{"$f":"+IF(I65=\"obbl.\",\"obbl.\",\"\")","v":""}]
[]
[null,"GARANZIE"]
[null,"Privilegio Speciale",null,null,null,null,{"$f":"+IF(ANAGRAFICA!$C$20>=250000,\"Obbl.\",\"\")","v":""}]
[null,"Ipoteca 1° Grado immobile nel caso di acquisto di immobile (solo CAPOIII)",null,null,null,null,{"$f":"IF(COUNTIF(J34:J36,APP!D2)>0,\"Obbl.\",0)","v":0}]
[]
[null,"DICHIARAZIONE SOSTITUTIVE ATTO NOTORIO"]
[null,"MOD 1 - Dichiarazioni Complessive",null,null,null,null,"Obbl."]
[null,"MOD 2 - Dichiarazione Fornitori",null,null,null,null,"Obbl."]
[null,"MOD 3 - Dichiarazione Assenza Precedenti",null,null,null,null,"Obbl."]
[null,"MOD 4 – Dichiarazioni Cedente",null,null,null,null,"Obbl. in caso di spese specifiche"]
[null,"MOD 5 – Dichiarazione Impegno Cessionario",null,null,null,null,"Obbl. in caso di spese specifiche"]
[null,"MOD 6 - Antiriciclaggio (solo progetti diversi da PNRR)",null,null,null,null,"Obbl."]
[null,"MOD 7 - PNRR (solo progetti PNRR)",null,null,null,null,"Obbl."]
[null,"MOD 8 - Dichiarazione Ultimazione Programma",null,null,null,null,"Obbl."]
[null,"MOD 9 - Dichiarazione DURC",null,null,null,null,"Obbl."]
[null,"MOD 10 - Dichiarazione coordinate bancarie fornitori e capitale circolante",null,null,null,null,"Obbl."]
[]
[null,"DOCUMENTAZIONE PER ATTIVITA' DI MONITORAGGIO AMMINISTRATIVO"]
[null,"- Mastrini contabili di tutti i fornitori rendicontati",null,null,null,null,"Obbl."]
[null,"- in presenza di quietanze liberatorie (MOD2 – Dichiarazioni fornitori) sottoscritte con firma autografa e doc. identità, trasmetterne l'originale tramite raccomandata A/R al seguente indirizzo: Agenzia nazionale per l'attrazione degli investimenti e lo sviluppo d'impresa SpA, Via P. Boccanelli 30 - 00138 Roma (RM)",null,null,null,null,"Obbl."]
[null,"- Relazione attestante le eventuali modifiche apportate al progetto approvato in termini di variazioni del portafoglio prodotti/servizi previsto e/o di capacità produttiva e/o di caratteristiche distintive dell'iniziativa proposta (es. vantaggio competitivo), sottoscritta digitalmente dal Legale Rappresentante",null,null,null,null,"Obbl. per casistiche specifiche"]
[]
[null,"ATTESTAZIONI E DOCUMENTI"]
[null," - Copia di un documento di riconoscimento in corso di validità",null,null,null,null,"Obbl."]
[null," - Copia della polizza assicurativa, contro il rischio di incendio/accessori",null,null,null,null,"Obbl."]
[null," - Copia dei titoli di spesa delle spese agevolate  e della contrattualistica di fornitura [Nota: I titoli di spesa devono riportare, nell’oggetto o nel campo note, l’indicazione del codice CUP (Codice Unico progetto) o della misura agevolativa “Nuove imprese a Tasso Zero”]",null,null,null,null,"Obbl."]
[null," - Copia sottoscritta digitalmente dal Legale Rappresentante del libro cespiti ammortizzabili con evidenza delle registrazioni delle fatture rendicontate ",null,null,null,null,"Obbl."]
[null," - Copia sottoscritta digitalmente dal Legale Rappresentante del libro giornale, con evidenza delle registrazioni delle fatture rendicontate",null,null,null,null,"Obbl."]
[null,"- Mandato irrevocabile di pagamento conforme al modello accluso quale Allegato B alla Convenzione per la regolamentazione dei conti correnti vincolati ai sensi dell'art. 10 comma 6 del decreto del Ministro dello, stipulata il 6 dicembre 2016 tra il Ministero dello Sviluppo Economico, Invitalia – Agenzia nazionale per l’attrazione degli investimenti e lo sviluppo d’impresa S.p.A., e l’Associazione Bancaria Italiana (ABI)\n- Estratto del conto corrente vincolato",null,null,null,null,"Obbl."]
[null," - Situazione patrimoniale, all’ultima data utile, con evidenza dell'eventuale costituzione dell'impegno (rif. delibera assembleare)  ad effettuare l'apporto finanziario privato ed i relativi versamenti",null,null,null,null,"Obbl."]
[null," - Ultimo bilancio approvato, o in assenza Situazione contabile all’ultima data utile sottoscritta digitalmente dal Legale Rappresentante e ove presente dal soggetto deputato alla tenuta delle scritture contabili, con evidenza dei costi sostenuti a titolo di capitale circolante netto (cfr. Materie prime - Servizi - Godimento di beni di terzi)",null,null,null,null,"Obbl."]
[null," - Perizia Asseverata che attesti la rispondenza dell’immobile agli specifici vincoli edilizi, urbanistici e di destinazione d’uso ovvero la loro avvenuta richiesta, laddove gli stessi non siano stati ancora rilasciati",null,null,null,null,"Obbl."]
[null," - Attestazione della disponibilità dei locali idonei all’attività d’impresa, ivi inclusa la conformità degli stessi",null,null,null,null,"Obbl. se non già fornita"]
[null," - Copia dei contratto di acquisto dei beni mobili registrati e - in caso di mezzi targati - della carta di circolazione e del certificato di proprietà",null,null,null,null,"Obbl. in caso di spese specifiche"]
[null," - Attestazione dello stato di avanzamento degli interventi e della realizzazione del piano degli investimenti delle spese non agevolate (se previste), funzionali alla realizzazione del programma di investimento ",null,null,null,null,"Obbl. per spese realizzate ma non agevolate"]
[null,"- In caso di rendicontazione di spese relative ad attrezzature installate presso unità produttive diverse dall’unità interessata dal programma agevolato:\na) copia del libro dei beni prestati a terzi\nb) copia del titolo di disponibilità in uso a titolo gratuito, da parte del cessionario, delle attrezzature agevolate installate presso unità produttive diverse dall’unità produttiva interessata dal programma agevolato\nc) copia dei documenti di trasporto tenuti ai sensi del D.P.R. 6 ottobre 1978, n. 627, e del D.M. 29 novembre 1978 e ss.mm.ii., da cui risulta l’ubicazione di ciascun bene",null,null,null,null,"Obbl. in caso di spese specifiche"]
[]
[null,"DOCUMENTAZIONE TECNICA"]
[null,"- Documentazione attestante la conformità urbanistica ed edilizia dell’immobile sede dell’attività agevolata a partire dallo stato ante opere (in caso di SAL unico a saldo, presentare Perizia asseverata).",null,null,null,null,"Obbl."]
[null,"- Documentazione attestante l’iter autorizzativo seguito ai fini del regolare avvio/esecuzione degli interventi, oggetto del programma agevolato, relativi a opere murarie e assimilate (es: Pdc, CILA, SCIA, sanatorie, elaborati grafici di progetto allegati ai titoli autorizzativi; Certificato di regolare esecuzione, Fine Lavori, Collaudo, Segnalazione certificata di Agibilità, Certificati di conformità impianti);",null,null,null,null,"Obbl."]
[null,"- Titoli autorizzativi e licenze necessari per il regolare svolgimento delle attività a seguito della realizzazione del programma di investimenti, anche in riferimento all’organizzazione di eventuali attività fuori dalla sede operativa (es: autorizzazioni e permessi comunali). Esempi:\n•\tS.C.I.A. Commerciale comprensiva della planimetria allegata;\n•\tAdempimenti in materia di sicurezza antincendio (S.C.I.A. depositata al Comando dei VVF, C.P.I. aggiornato, ecc.);\n•\tAdempimenti in materia ambientale (autorizzazioni allo scarico, A.U.A., A.I.A., ecc.);\n•\tAutorizzazioni sanitarie,\n•\tEvidenza del regolare allaccio alla rete elettrica.",null,null,null,null,"Obbl."]
[null,"- Certificati di conformità CE e numero di matricola (ove presente) di tutti i beni richiesti alle agevolazioni",null,null,null,null,"Obbl."]
[null,"- Layout in scala, corrispondente allo stato di fatto dell’immobile",null,null,null,null,"Obbl."]
[null,"- Computo metrico a consuntivo dettagliato delle opere realizzate, timbrato e firmato dal Direttore Lavori, con specifica delle ditte realizzatrici per ogni singola voce di spesa",null,null,null,null,"Obbl. in caso di spese specifiche"]
[null,"- Visura catastale aggiornata",null,null,null,null,"Obbl. in caso di spese specifiche"]
[null,"- \tPlanimetria aggiornata post realizzazione Opere Murarie",null,null,null,null,"Obbl. in caso di spese specifiche"]
[null,"- Con riferimento alle spese inerenti i programmi e piattaforme informatiche, servizi per le tecnologie dell’informazione e della comunicazione (es. progettazione di architetture telematiche, di hosting, di gestione data-base), fornire documentazione utile a descrivere i servizi acquisiti (quale, ad esempio: relazione generale e cronoprogramma delle attività svolte dal fornitore, analisi dei requisiti funzionali, manuali d’uso, certificati di garanzia, crono spesa con evidenza delle tariffe per gg. uomo e dei gg. uomo impiegati per ciascuna fase di sviluppo).",null,null,null,null,"Obbl. in caso di spese specifiche"]
[]
[]
[]
[]
[]
[]
[]
[]
[]
[]
[null,null,null,"LUOGO E DATA",null,null,null,null,{"$f":"+CONCATENATE(\"FIRMA DIGITALE DEL \",ANAGRAFICA!C44)","v":"FIRMA DIGITALE DEL "}]
[null,null,null,{"$f":"+CONCATENATE(ANAGRAFICA!C47,\" \",TEXT(TODAY(),\"gg/mm/aaaa\"))","v":" 12/12/2025"}]
[]
[]
[]
[]
[]
[]
[null,null,null,null,null,null,null,null,{"$f":"+I65","v":""}]

{"sheet":"SAL_Unico_Credito","index":16,"n_rows":14,"n_cols":12,"rows_kept":14,"cut":false,"hidden":false,"merged":[[2,0,2,11],[10,0,10,11],[12,6,13,11]]}
[]
[]
["Dettaglio delle agevolazione fruite sui beni oggetto dell'investimento"]
["Partita IVA","Fornitore ","N. fatt.","Data fatt.","Bene","Valore Imponibile  Bene","Tipo di agevolazione","Agevolazione maturata totale","di cui fruita (rif. compensazioni)\n(A)","Vantaggio fiscale (es. IRES/IRAP) su agevolazione fruita\n(B)","Totale ulteriori agevolazioni fruite\n(A+B)","CUP (ove presente)"]
[]
[]
[]
[null,null,null,null,null,{"$f":"+SUM(F5:F7)","v":0},null,{"$f":"+SUM(H5:H7)","v":0},{"$f":"+SUM(I5:I7)","v":0},{"$f":"+SUM(J5:J7)","v":0},{"$f":"+SUM(K5:K7)","v":0}]
[]
[]
["La tabella deve riepilogare i beni oggetto di altre agevolazione (credito di imposta, fondi regionali ecc..), indicando le relative fatture e fornitore. Pertanto beni/fatture che non si riferiscono a beni oggetto di altre agevolazioni non dovranno essere elencati/e."]
[]
["LUOGO E DATA",null,null,null,null,null,{"$f":"+CONCATENATE(\"FIRMA DIGITALE DEL \",ANAGRAFICA!C5)","v":"FIRMA DIGITALE DEL "}]
[{"$f":"+CONCATENATE(ANAGRAFICA!C8,\" \",TEXT(TODAY(),\"gg/mm/aaaa\"))","v":" 12/12/2025"}]

{"sheet":"CASISTICA CAPOIII","index":17,"n_rows":39,"n_cols":18,"rows_kept":39,"cut":false,"hidden":true,"merged":[[12,7,12,11],[6,10,6,11],[19,7,19,10],[20,7,20,10],[13,7,13,10],[14,7,14,10],[15,7,15,10],[36,7,36,10],[38,7,38,10],[37,7,37,10],[35,7,35,10],[27,7,27,10],[28,7,28,10],[29,7,29,10],[30,7,30,10],[31,7,31,10],[32,7,32,10],[33,7,33,10],[34,7,34,10],[26,7,26,10],[21,7,21,10],[22,7,22,10],[23,7,23,10],[1,1,1,5],[2,1,3,1],[2,3,3,3],[2,4,3,4],[2,5,3,5],[2,2,3,2],[1,7,3,11],[6,8,6,9],[5,7,5,11],[17,7,17,11],[25,7,25,11],[18,7,18,10]]}
[]
[null,"EVENTO EROGAZ.",null,null,null,null,null,"TAVOLA SINOTTICA PER LA DETERMINAZIONE DELLA DOCUMENTAZIONE DA INSERIRE NELLA RICHIESTA DI EROGAZIONE"]
[null,"ANTICIPO","1° SAL","SAL INTERMEDI","SALDO","SALDO UNICO"]
[]
[]
[null,"x","x","x","x","x",null,"DICHIARAZIONI RICHIESTE PER ANTIMAFIA"]
[null,null,null,null,null,null,null,"IMPORTO TOTALE AGEVOLAZIONE CONCESSA","tra 150.000€ e 250.000€",null,">250.000€"]
[null,null,null,null,null,null,null,"TIPOLOGIA SOCIETARIA","Società","Coop","Società","Coop"]
[null,"x","x","x","x","x",null,"ANT 1 - Dichiarazione Antimafia Società","x",null,"x"]
[null,"x","x","x","x","x",null,"ANT 2- Dichiarazione Antimafia Cooperative",null,"x",null,"x"]
[null,"x","x","x","x","x",null,"ANT 3 - Familiari ","x","x","x","x"]
[]
[null,"x","x","x","x","x",null,"GARANZIE"]
[null,"x",null,null,null,null,null,"Fideiussione o polizza fideiussioria",null,null,null,{"$f":"+IF(ANTICIPO!C18>0,\"x\",\"\")","v":""}]
[null,null,"x","x","x","x",null,"Privilegio Speciale",null,null,null,{"$f":"+IF(ANAGRAFICA!C19>=250000,\"x\",\"\")","v":""}]
[null,null,"x",null,null,"x",null,"Ipoteca 1° Grado immobile nel caso di acquisto di immobile (solo CAPOIII)",null,null,null,{"$f":"IF(COUNTIF('1°SAL'!K33:K36,APP!D2)>0,\"x\",0)","v":0}]
[]
[null,"x","x","x","x","x",null,"DICHIARAZIONE SOSTITUTIVE ATTO NOTORIO"]
[null,"x","x","x","x","x",null,"MOD 1 - Dichiarazioni Complessive",null,null,null,"x"]
[null,null,"x","x","x","x",null,"MOD 2 - Dichiarazione Fornitori",null,null,null,"x"]
[null,"x","x","x","x","x",null,"MOD 3 - Dichiarazione Assenza Precenti",null,null,null,"x"]
[null,null,"x","x","x","x",null,"MOD 4 – Dichiarazioni Cedente",null,null,null,"x"]
[null,null,"x","x","x","x",null,"MOD 5 – Dichiarazione Impegno Cessionario",null,null,null,"x"]
[null,null,null,null,"x","x",null,"MOD 6 - Dichiarazione Ultimazione Programma",null,null,null,"x",null,null,null,null,null," "]
[]
[null,"x","x","x","x","x",null,"ATTESTAZIONI E DOCUMENTI"]
[null,"x","x","x","x","x",null," - Copia di un documento di riconoscimento in corso di validità",null,null,null,"x"]
[null,null,"x",null,null,"x",null," - Attestazione della disponibilità dei locali idonei all’attività d’impresa",null,null,null,"x",null,null,null,null,null," "]
[null,null,"x",null,null,"x",null," - Attestazione della rispondenza dell’immobile agli specifici vincoli edilizi, urbanistici e di destinazione d’uso ovvero la loro avvenuta richiesta, laddove gli stessi non siano stati ancora rilasciati",null,null,null,"x"]
[null,null,"x","x","x","x",null," - Attestazione dello stato di avanzamento degli interventi e della realizzazione del piano degli investimenti delle spese non agevolate, funzionali alla realizzazione del programma di investimento ",null,null,null,"x"]
[null,null,"x","x","x","x",null," - Copia dei titoli di spesa delle spese agevolaTe  e della contrattualistica di fornitura [Nota: I titoli di spesa devono riportare, anche mediante l’utilizzo di apposito timbro, la dicitura: ",null,null,null,"x"]
[null,null,"x","x","x","x",null," - Copia dei contratto di acquisto dei beni mobili registrati e - in caso di mezzi targati - della carta di circolazione e del certificato di proprietà",null,null,null,"x"]
[null,null,"x","x","x","x",null," - Copia sottoscritta digitalmente dal Legale Rappresentante del libro cespiti ammortizzabili con evidenza delle registrazioni delle fatture rendicontate ",null,null,null,"x"]
[null,null,"x","x","x","x",null," - Copia sottoscritta digitalmente dal Legale Rappresentante del libro giornale, con evidenza delle registrazioni delle fatture rendicontate e, se quietanzate, dei relativi pagamenti",null,null,null,"x"]
[null,null,"x","x","x","x",null," - Copia sottoscritta digitalmente dal Legale Rappresentante degli estratti conto bancari con evidenza: dei pagamenti effettuati rispetto alle spese:\n a) dei pagamenti effettuati rispetto alle spese sostenute e richieste nel SAL in corso (Tab. 2);\n b) dei pagamenti effettuati rispetto alle spese rendicontate nel SAL precedente e successivamente pagate (Tab. 3) (solo per i SAL successivi al 1°);\nc) dei versamenti della quota di apporto del contributo finanziario in relazione al SAL rendicontato",null,null,null,"x"]
[null,null,"x","x","x","x",null," - Situazione patrimoniale , all’ultima data utile, che evidenzia i versamenti effettuati a titolo di apporto finanziario privato",null,null,null,"x"]
[null,null,"x","x","x","x",null," - Copia della polizza assicurativa, vincolata a favore di Invitalia, contro il rischio di incendio/accessori e delle quietanze attestanti il regolare pagamento dei premi",null,null,null,"x"]
[null,null,"x","x","x","x",null,"- In caso di rendicontazione di spese relative ad attrezzature installate presso unità produttive diverse dall’unità interessata dal programma agevolato:\na) copia del libro dei beni prestati a terzi\nb) copia del titolo di disponibilità in uso a titolo gratuito, da parte del cessionario, delle attrezzature agevolate installate presso unità produttive diverse dall’unità produttiva interessata dal programma agevolato\nc) copia dei documenti di trasporto tenuti ai sensi del D.P.R. 6 ottobre 1978, n. 627, e del D.M. 29 novembre 1978 e ss.mm.ii., da cui risulta l’ubicazione di ciascun bene",null,null,null,"x"]
[null,null,"x","x","x","x",null," - Relazione Tecnica del Direttore Lavori/Cantiere dello stato di avanzamento dei lavori connessi alle Opere Murarie (agevolate e non agevolate) relativa a:\n a) richieste e rilascio di permessi ed autorizzazioni abilitative all'avvio delle opere\n b) lavori realizzati\n c) lavori da realizzare\n d) variazioni eventuali intervenute in corso d'opera",null,null,null,"x"]

{"sheet":"APP","index":18,"n_rows":18,"n_cols":11,"rows_kept":18,"cut":false,"hidden":true,"merged":[]}
[null,{"$f":"+IF(OR(ANAGRAFICA!G2=\"\",ANAGRAFICA!G2=\"CAPO II\"),\"CAPO II\",\"CAPO III\")","v":"CAPO II"},"CAPO II","CAPO III","MODALITA",null,null,null,null,null,"SRL"]
[1,{"$f":"+HLOOKUP($B$1,$C$1:$D$7,(A2+1),0)","v":"Opere murarie e assimilate"},"Opere murarie e assimilate","Acquisto immobile sede dell'attività","Assegno Bancario",null,null,null,null,null,"SRLS"]
[2,{"$f":"+HLOOKUP($B$1,$C$1:$D$7,(A3+1),0)","v":"Macchinari, impianti ed attrezzature"},"Macchinari, impianti ed attrezzature","Opere murarie e assimilate","Assegno Circolare",null,null,null,null,null,"SRL Unipersonale"]
[3,"Programmi informatici e servizi per le tecnologie dell’informazione e della comunicazione","Programmi informatici e servizi per le tecnologie dell’informazione e della comunicazione","Macchinari, impianti ed attrezzature","Bonifico",null,null,null,null,null,"SPA"]
[4,"Acquisto di brevetti o acquisizione di relative licenze d’uso","Acquisto di brevetti o acquisizione di relative licenze d’uso","Programmi informatici, brevetti, licenze e marchi","Carta Credito",null,null,null,null,null,"SAPA"]
[5,{"$f":"IF(HLOOKUP($B$1,$C$1:$D$7,(A6+1),0)=0,\"\",HLOOKUP($B$1,$C$1:$D$7,(A6+1),0))","v":"Consulenze specialistiche"},"Consulenze specialistiche",null,"Carte POS",null,null,null,null,null,"SNC"]
[6,{"$f":"IF(HLOOKUP($B$1,$C$1:$D$7,(A7+1),0)=0,\"\",HLOOKUP($B$1,$C$1:$D$7,(A7+1),0))","v":"Oneri notarili connessi alla stipula del contratto di finanziamento ed oneri connessi alla costituzione della società"},"Oneri notarili connessi alla stipula del contratto di finanziamento ed oneri connessi alla costituzione della società",null,"RIBA",null,null,null,null,null,"SAS"]
[null,null,null,null,null,null,null,null,null,null,"SRL STP"]
[null,null,null,null,null,null,null,null,null,null,"SRLS STP"]
[null,null,null,null,null,null,null,null,null,null,"SPA STP"]
[null,null,null,null,null,null,null,null,null,null,"SAPA STP"]
[null,null,null,null,null,null,null,null,null,null,"SNC STP"]
[null,null,null,null,null,null,null,null,null,null,"SAS STP"]
[null,null,null,null,null,null,null,null,null,null,"Soc. cons. srl"]
[null,null,null,null,null,null,null,null,null,null,"Soc. Coop."]
[null,null,null,null,null,null,null,null,null,null,"Soc. Coop. STP"]
[null,null,null,null,null,null,null,null,null,null,"Soc. Cons. A.R.L."]
[null,null,null,null,null,null,null,null,null,null,"Società estera"]